{"text_format":"3","workbook":"xlsx","n_sheets":13,"sheets":["D Cloud DR","Cloud Hosting","E Development Env","G Locations","I Compliance","J Price WAN","VOIP","O Fin Sum","P Qualify","Q References","R Capability","Price Summary","Price Internet"],"not_rendered":{"images":1,"defined_names":11},"read":"whole","date_system":"1900"}

{"sheet":"D Cloud DR","index":0,"n_rows":27,"n_cols":4,"rows_kept":27}
["Disaster Recovery Environment"]
["Server","CPU","RAM","T1 Storage QTY (GB)"]
["Domain Controller 1",4,4,150]
["Domain Controller 2",4,4,150]
["Great Plains Broker",2,4,80]
["Great Plains RDS1",8,20,120]
["Great Plains RDS2",8,20,120]
["SQL ",16,136,4200]
["RoomSeeker WEB",8,4,80]
["Roomseeker Mail relay",4,12,100]
["Roomseeker Broker",8,12,150]
["Roomseeker RDS1",8,16,150]
["Roomseeker RDS2",8,16,150]
["Metastorm RDS2",2,8,101]
["VIP RDS1",8,4,471]
["VIP RDS2",4,4,100]
["Biztalk",4,8,220]
["Starlight",2,16,127]
["Starlight database server",2,8,327]
["Starlight",2,8,180]
["Nomad",4,9,120]
["Jumpbox",4,9,200]
["GKLinux",4,9,2000]
["VIP ",4,4,100]
["Biztalk ",4,8,220]
["RDS 3",8,16,150]
["RDS 4",8,16,150]

{"sheet":"Cloud Hosting","index":1,"n_rows":101,"n_cols":14,"rows_kept":101,"merged":[[2,8,2,8],[2,9,2,9],[2,12,2,12],[3,8,3,8],[3,9,3,9],[3,12,3,12],[5,8,5,8],[5,9,5,9],[5,12,5,12],[6,8,6,8],[6,9,6,9],[6,12,6,12],[8,8,8,8],[8,9,8,9],[8,12,8,12],[9,8,9,8],[9,9,9,9],[9,12,9,12],[10,8,10,8],[10,9,10,9],[10,12,10,12],[16,8,16,8],[16,9,16,9],[16,12,16,12],[17,8,17,8],[17,9,17,9],[17,12,17,12],[20,8,20,8],[20,9,20,9],[20,12,20,12],[21,8,21,8],[21,9,21,9],[21,12,21,12],[27,8,27,8],[27,9,27,9],[27,12,27,12],[29,9,29,9],[29,12,29,12],[30,9,30,9],[30,12,30,12],[37,8,37,8],[37,9,37,9],[37,12,37,12],[55,9,55,9],[55,12,55,12],[56,9,56,9],[56,12,56,12],[57,9,57,9],[57,12,57,12],[58,9,58,9],[58,12,58,12],[60,9,60,9],[60,12,60,12],[61,9,61,9],[61,12,61,12],[62,9,62,9],[62,12,62,12],[63,9,63,9],[63,12,63,12],[71,9,71,9],[71,12,71,12],[72,9,72,9],[72,12,72,12],[74,9,74,9],[74,12,74,12],[76,8,76,8],[76,9,76,9],[76,12,76,12],[77,8,77,8],[77,9,77,9],[77,12,77,12],[82,8,82,8],[82,9,82,9],[82,12,82,12]]}
[]
["VMName","MemoryAssigned","RAM","RAM Price","vmWare","vmWare Price","CPU 1GHz","vCPU Price","CPU 2GHz","vCPU Price","SizeOf Syste mFiles","Disk  (GB)","Disk  price","Application Name"]
["SSVAARR1611","4 294 967 296",4,null,4,null,2,{"$nulls":3},"151 552",148,null,"AAR"]
["SSVAARR1612","4 294 967 296",4,null,4,null,2,{"$nulls":3},"104 878",102,null,"AAR"]
["SGVANB01","4 294 967 296",4,null,4,null,2,{"$nulls":4},"-",null,"Analyst Notebook"]
["SGVOBI01","17 179 869 184",16,null,16,null,4,{"$nulls":3},"225 280",220,null,"BI"]
["SGVOBI02","17 179 869 184",16,null,16,null,2,{"$nulls":3},"118 784",116,null,"BI"]
["SGVMBM01","4 294 967 296",4,null,4,null,2,{"$nulls":3},"77 824",76,null,"Bitlocker"]
["SSVBDA359","34 359 738 368",32,null,24,null,8,{"$nulls":3},"109 216",107,null,"Biztalk"]
["SSVBPA351","8 589 934 592",8,null,8,null,2,{"$nulls":3},"155 648",152,null,"Biztalk"]
["SSVBPA352","8 589 934 592",8,null,8,null,4,{"$nulls":3},"348 160",340,null,"Biztalk"]
["SSVBPS353","12 884 901 888",12,null,12,null,8,{"$nulls":3},"49 671",49,null,"Biztalk"]
["SGVCAM01","17 179 869 184",16,null,16,null,4,{"$nulls":4},"-",null,"Camera Server"]
["SGVCRM01","17 179 869 184",16,null,16,null,4,{"$nulls":3},"49 392",48,null,"Dynamics. CRM MS"]
["SGVCDW01","21 474 836 480",20,null,20,null,4,{"$nulls":4},"-",null,"DC"]
["SGVECM01","34 359 738 368",32,null,24,null,4,{"$nulls":3},"98 304",96,null,"ECM"]
["SGVECM02","34 359 738 368",32,null,24,null,4,{"$nulls":3},"114 688",112,null,"ECM"]
["SGVECM03","8 589 934 592",8,null,8,null,2,{"$nulls":3},"106 496",104,null,"ECM"]
["SGVECM04","17 179 869 184",16,null,16,null,2,{"$nulls":3},"98 304",96,null,"ECM"]
["SGVECM05","8 589 934 592",8,null,8,null,2,{"$nulls":3},"98 304",96,null,"ECM"]
["SGVECM06","34 359 738 368",32,null,24,null,4,{"$nulls":3},"151 552",148,null,"ECM"]
["SGVECM07","17 179 869 184",16,null,16,null,2,{"$nulls":3},"106 496",104,null,"ECM"]
["SGVELECMON02","8 589 934 592",8,null,8,null,2,{"$nulls":3},"86 016",84,null,"Electricity Monitor"]
["SGVEXCH01","17 179 869 184",16,null,16,null,4,null,4,null,"69 632",68,null,"Exchange"]
["SGVADconnect01 andSGVDRS01 ->","8 589 934 592",8,null,8,null,4,null,4,null,"49 226",48,null,"Exchange / Dirsync"]
["SGVFLS01","8 589 934 592",8,null,8,null,4,{"$nulls":3},"52 254",51,null,"File Server"]
["SSVAVNUP186","4 294 967 296",4,null,4,null,2,{"$nulls":3},"53 248",52,null,"FNB File"]
["SGVGIS01","4 294 967 296",4,null,4,null,2,{"$nulls":3},"323 584",316,null,"GIS"]
["SGVDBR01","4 294 967 296",4,null,4,null,2,null,2,null,"54 586",53,null,"Great Plains"]
["SGVDMB01","8 589 934 592",8,null,8,null,2,null,2,null,"106 496",104,null,"Great Plains"]
["SGVDMS01","17 179 869 184",16,null,16,null,8,null,8,null,"163 840",160,null,"Great Plains"]
["SGVDMS02","25 568 477 184",24,null,24,null,8,null,8,null,"90 112",88,null,"Great Plains"]
["SGVDMS03","25 568 477 184",24,null,24,null,8,null,8,null,"90 112",88,null,"Great Plains"]
["SGVDMS04","25 769 803 776",24,null,24,null,8,null,8,null,"90 112",88,null,"Great Plains"]
["SGVJPOS01","17 179 869 184",16,null,16,null,4,{"$nulls":3},"42 706",42,null,"JPOS"]
["SGVFAS01","17 179 869 184",16,null,16,null,8,{"$nulls":3},"57 123",56,null,"Jump Box"]
["SSVAS224","8 589 934 592",8,null,8,null,2,{"$nulls":3},"94 208",92,null,"Memex"]
["SSVAVMPR015","8 589 934 592",8,null,8,null,4,{"$nulls":3},"237 568",232,null,"Metastorm"]
["SSVMCS397","8 589 934 592",8,null,8,null,4,null,4,null,"84 398",82,null,"Mimecast"]
["SSVTVT075","4 294 967 296",4,null,4,null,4,{"$nulls":3},"98 304",96,null,"Necto"]
["SGVNMD01","8 589 934 592",8,null,8,null,4,{"$nulls":3},"77 824",76,null,"Nomad"]
["SGVNPO01","4 294 967 296",4,null,4,null,1,{"$nulls":3},"47 825",47,null,"Notion Pro"]
["SGVAAS01","8 589 934 592",8,null,8,null,2,{"$nulls":3},"94 208",92,null,"PAM"]
["SGVAAS02","8 589 934 592",8,null,8,null,2,{"$nulls":3},"77 824",76,null,"PAM"]
["SGVAAS03","8 589 934 592",8,null,8,null,2,{"$nulls":3},"54 185",53,null,"PAM"]
["SGVAAS04","8 589 934 592",8,null,8,null,2,{"$nulls":3},"56 066",55,null,"PAM"]
["SGVMIF01","17 179 869 184",16,null,16,null,4,{"$nulls":3},"42 664",42,null,"PAM"]
["SGVMIF02","17 179 869 184",16,null,16,null,4,{"$nulls":3},"46 807",46,null,"PAM"]
["SGVPAM01","12 884 901 888",12,null,12,null,4,{"$nulls":3},"47 825",47,null,"PAM"]
["SGVPAM02","12 884 901 888",12,null,12,null,4,{"$nulls":3},"49 152",48,null,"PAM"]
["SGVPKI01","-","-",null,"-",null,1,{"$nulls":3},"46 400",45,null,"PKI"]
["SGVPKI02","4 294 967 296",4,null,4,null,2,{"$nulls":3},"48 250",47,null,"PKI"]
["SGVPRTG01","12 884 901 888",12,null,12,null,8,null,8,null,"48 579",47,null,"PRTG"]
["SSVAQLV227","12 884 901 888",12,null,12,null,4,{"$nulls":3},"48 613",47,null,"Qlikview"]
["SGVRAL01","4 294 967 296",4,null,4,null,2,{"$nulls":3},"48 883",48,null,"Room Alert"]
["SGVRMB01","8 589 934 592",8,null,8,null,2,null,2,null,"139 264",136,null,"RoomSeeker"]
["SGVRMS01","8 589 934 592",8,null,8,null,2,null,2,null,"102 400",100,null,"RoomSeeker"]
["SGVRMS02","8 589 934 592",8,null,8,null,2,null,2,null,"102 400",100,null,"RoomSeeker"]
["SGVRMS03","8 589 934 592",8,null,8,null,2,null,2,null,"143 360",140,null,"RoomSeeker"]
["SGVRMS04","8 589 934 592",8,null,8,null,2,null,2,null,"90 112",88,null,"RoomSeeker"]
["SGVRMS05","8 589 934 592",8,null,8,null,2,null,2,null,"143 360",140,null,"RoomSeeker"]
["SGVRMS06","8 589 934 592",8,null,8,null,2,null,2,null,"106 496",104,null,"RoomSeeker"]
["SGVRMS07","8 589 934 592",8,null,8,null,2,null,2,null,"126 976",124,null,"RoomSeeker"]
["SSVTA033","12 884 901 888",12,null,12,null,4,null,4,null,"184 320",180,null,"RoomSeeker Mail Server"]
["SGVSAGE300","34 359 738 368",32,null,24,null,10,null,10,null,"46 775",46,null,"Sage"]
["SSVSCCM226","34 359 738 368",32,null,24,null,8,{"$nulls":3},"55 463",54,null,"SCCM"]
["SGVADFS01","4 294 967 296",4,null,4,null,2,null,2,null,"54 110",53,null,"Sharepoint"]
["SGVADFS02","4 294 967 296",4,null,4,null,2,null,2,null,"47 005",46,null,"Sharepoint"]
["SGVOWA01","25 769 803 776",24,null,24,null,4,null,4,null,"65 406",64,null,"Sharepoint"]
["SGVWAP01","4 294 967 296",4,null,4,null,2,null,2,null,"51 060",50,null,"Sharepoint"]
["SGVWAP02","4 294 967 296",4,null,4,null,2,null,2,null,"51 601",50,null,"Sharepoint"]
["SGVWFE01","34 359 738 368",32,null,24,null,12,null,12,null,"126 976",124,null,"Sharepoint"]
["SGVWFE02","34 359 738 368",32,null,24,null,12,null,12,null,"147 456",144,null,"Sharepoint"]
["SGVSKYBOX01","34 359 738 368",32,null,24,null,8,null,8,null,"52 084",51,null,"Skybox"]
["SGVSQL01","773 094 000 000",720,null,24,null,16,null,16,null,"131 72",128,null,"SQL"]
["SGVSQL02","773 094 000 000",720,null,24,null,16,null,16,null,"98 304",96,null,"SQL"]
["SGVSTR01","8 589 934 592",8,null,8,null,2,{"$nulls":3},"180 224",176,null,"Starlight"]
["SGVSTR02","17 179 869 184",16,null,16,null,2,{"$nulls":3},"180 224",176,null,"Starlight"]
["SGVSTR03","8 589 934 592",8,null,8,null,2,{"$nulls":3},"48 793",48,null,"Starlight"]
["SSVPOSCS194","8 589 934 592",8,null,8,null,2,{"$nulls":3},"98 304",96,null,"Starlight"]
["SGVSTOR01","8 589 934 592",8,null,8,null,2,{"$nulls":3},"45 724",45,null,"Storage"]
["SSVAVTS154","8 589 934 592",8,null,8,null,8,{"$nulls":3},"172 32",168,null,"VIP"]
["SSVAVTS155","4 294 967 296",4,null,4,null,4,{"$nulls":3},"139 265",136,null,"VIP"]
["SSVAVTS156","4 294 967 296",4,null,4,null,4,{"$nulls":3},"172 32",168,null,"VIP"]
["SSVAVVDB153","8 589 934 592",8,null,8,null,4,{"$nulls":3},"59 715",58,null,"VIP"]
["SGVWEB01","4 294 967 296",4,null,4,null,8,{"$nulls":3},"237 568",232,null,"Web"]
["SGVWEB02","4 294 967 296",4,null,4,{"$nulls":6},"-",null,"Web"]
["SSVTVEXP92","4 294 967 296",4,null,4,null,2,{"$nulls":3},"110 592",108,null,"Wildcard"]
["SGVXLAYER01","4 395 630 592",4,null,4,null,2,{"$nulls":3},"42 706",42,null,"Xlayer"]
["SGVChangeGuar dian01",null,24,null,24,null,8,{"$nulls":4},400,null,"Change Guardian"]
["SGVCloudF01",null,16,null,16,null,8,{"$nulls":4},100,null,"Cloudflare"]
["SGVNAC01",null,32,null,24,null,8,{"$nulls":4},550,null,"NAC"]
[112,null,"2 862",{"$f":"SUM(D3:D92)","v":{"v":0,"d":"R 0.00"}},"1 366",{"$f":"SUM(F3:F92)","v":{"v":0,"d":"R 0.00"}},522,{"$f":"SUM(H3:H92)","v":{"v":0,"d":"R 0.00"}},294,{"$f":"SUM(J3:J92)","v":{"v":0,"d":"R 0.00"}},null,"10 531",{"$f":"SUM(M3:M92)","v":{"v":0,"d":"R 0.00"}},"All disk"]
[]
[null,"Quantity","Monthly Price"]
["Once off Cost"]
["Ram","2 862",{"$f":"D93","v":{"v":0,"d":"R 0.00"}}]
["Vmware ",1366,{"$f":"F93","v":{"v":0,"d":"R 0.00"}}]
["vcpu 1GH ",522,{"$f":"H93","v":{"v":0,"d":"R 0.00"}}]
["vcpu 2GH ",294,{"$f":"J93","v":{"v":0,"d":"R 0.00"}}]
["disk (GB) ",10531,{"$f":"M93","v":{"v":0,"d":"R 0.00"}}]

{"sheet":"E Development Env","index":2,"n_rows":44,"n_cols":6,"rows_kept":44}
["Development Environment"]
["VM","vProcessor","vRAM-Startup","vDisk1-Allocated","vDisk2-Allocated","O/S"]
["SBVCDW01",4,"8 GB","150 GB","NA","Server 2016 Standard"]
["SGKEXP95",2,"4 GB","100 GB","NA","Server 2008 R2 Standard"]
["SGKEXP96",1,"4 GB","100 GB","NA","Server 2008 R2 Standard"]
["SGVDMSTEST01",2,"8 GB","127 GB","NA","Server 2016 Standard"]
["SGVECMDEV01",2,"8 GB","127 GB","NA","Server 2016 Standard"]
["SGVECMDEV06",2,"8 GB","127 GB","NA","Server 2016 Standard"]
["SGVSQL2016",8,"32 GB","60 GB","3701 GB","Server 2012 R2 Standard"]
["SSVAVMPR169",2,"6 GB","80 GB","NA","Server 2008 R2 Standard"]
["SSVAVTS152",4,"4 GB","80 GB","NA","Server 2008 R2 Standard"]
["SSVBTA355",4,"4 GB","120 GB","60 GB","Server 2012 R2 Standard"]
["SSVBTS357",2,"4 GB","120 GB","200 GB","Server 2012 R2 Standard"]
["SSVGPTEST382",4,"8 GB","100 GB","NA","Server 2012 R2 Standard"]
["STESTS094",2,"1 GB","100 GB","NA","Server 2008 R2 Standard"]
["SBVCDW02",4,"8 GB","150 GB","NA","Server 2016 Standard"]
["SGVMFC01",2,"16 GB","100 GB","NA","Linux"]
["SGVNMD01",4,"8 GB","127 GB","NA","Server 2016 Standard"]
["SGVOBIDEV01",4,"16 GB","127 GB","1551 GB","Server 2016 Standard"]
["SGVWEBT01",1,"4 GB","80 GB","NA","Server 2012 R2 Standard"]
["SGVWLD01",1,"4 GB","100 GB","NA","Server 2008 R2 Standard"]
["SGVWLD02",2,"4 GB","127 GB","NA","Server 2016 Standard"]
["SSVADPIN185",2,"8 GB","100 GB","NA","Server 2008 R2 Standard"]
["SSVAVS149",4,"8 GB","85 GB","500 GB","Server 2008 R2 Standard"]
["SSVBTA356",4,"4 GB","120 GB","60 GB","Server 2012 R2 Standard"]
["SSVBTS358",4,"12 GB","120 GB","200 GB","Server 2012 R2 Standard"]
["STSTVBPM243",2,"8 GB","100 GB","NA","Server 2008 R2 Standard"]
["RSTEST231",2,"4 GB","80 GB","100 GB","Server 2012 R2 Standard"]
["SGVDMSSQLTEST",4,"8 GB","127 GB","600 GB","Server 2016 Standard"]
["SGVECMDEV02",2,"8 GB","127 GB","NA","Server 2016 Standard"]
["SGVECMDEV03",2,"8 GB","127 GB","NA","Server 2016 Standard"]
["SGVECMDEV04",2,"8 GB","127 GB","NA","Server 2016 Standard"]
["SGVECMDEV05",2,"8 GB","127 GB","NA","Server 2016 Standard"]
["SGVECMDEV07",2,"8 GB","127 GB","NA","Server 2016 Standard"]
["SGVECMUAT01",2,"8 GB","127 GB","NA","Server 2016 Standard"]
["SGVMEM01",2,"8 GB","127 GB","NA","Linux"]
["SGVOBIDEV02",2,"8 GB","127 GB","NA","Server 2016 Standard"]
["SGVRDSTEST2",2,"8GB","80 GB","NA","Server 2012 R2 Standard"]
["SGVWLDL01",4,"8 GB","500 GB","NA","Linux"]
["SGVWLDL02",4,"8 GB","500 GB","NA","Linux"]
["SSVAVMDB167",4,"2 GB","80 GB","10 GB","Server 2012 R2 Standard"]
["SSVSQLGPTEST381",1,"8 GB","121 GB","1639 GB","Server 2008 R2 Standard"]
["STESTS209",8,"12 GB","80 GB","270 GB","Server 2012 R2 Standard"]
["STSTVSQL249",2,"4 GB","80 GB","105 GB","Server 2008 R2 Standard"]

{"sheet":"G Locations","index":3,"n_rows":107,"n_cols":21,"rows_kept":107}
["Locations and Support",{"$nulls":13},"Score",{"$f":"P107/T21*5","v":0},{"$nulls":3},0,5]
["Region","Site Name","Admin","Tourism","Total","Cabinets","Routers","Switches","WAPs","Support Site Name","Town / Place Situated","Number of Resources at Site","Distance from site","Travel time to site","Score","Weighted Score",{"$nulls":3},0.5,5]
["Cape Town & Surrounds","Technical Offices (Kuilsrivier)",9,0,9,1,1,1,2,{"$nulls":5},{"$f":"IF(N3=\"\",0,IF(N3>6,1,VLOOKUP(N3,$T$1:$U$19,2,FALSE)))","v":0},{"$f":"ROUND(O3*E3,1)","v":0},{"$nulls":3},1,5]
["Cape Town & Surrounds","TMNP - Boulders ",3,0,3,1,1,1,1,{"$nulls":5},0,0,{"$nulls":3},1.5,4]
["Cape Town & Surrounds","TMNP - Buffelsfontein (BVC - Homestead) ",1,0,1,2,1,2,1,{"$nulls":5},0,0,{"$nulls":3},2,4]
["Cape Town & Surrounds","TMNP - Klaasjagersberg",14,1,15,2,1,2,1,{"$nulls":5},0,0,{"$nulls":3},2.5,3]
["Cape Town & Surrounds","TMNP - Kloofnek",18,2,20,1,1,1,1,{"$nulls":5},0,0,{"$nulls":3},3,3]
["Cape Town & Surrounds","TMNP - Mount Pleasant",11,1,12,1,1,1,1,{"$nulls":5},0,0,{"$nulls":3},3.5,3]
["Cape Town & Surrounds","TMNP - Newlands",2,0,2,1,1,1,1,{"$nulls":5},0,0,{"$nulls":3},4,3]
["Cape Town & Surrounds","TMNP - Orangekloof",5,0,5,1,1,1,1,{"$nulls":5},0,0,{"$nulls":3},4.5,2]
["Cape Town & Surrounds","TMNP - Silvermine",11,0,11,1,1,1,1,{"$nulls":5},0,0,{"$nulls":3},5,2]
["Cape Town & Surrounds","TMNP - Slangkop Tented Camp",2,1,3,1,1,1,1,{"$nulls":5},0,0,{"$nulls":3},5.5,2]
["Cape Town & Surrounds","TMNP - Smitswinkel",0,1,1,1,1,1,1,{"$nulls":5},0,0,{"$nulls":3},6,2]
["Cape Town & Surrounds","TMNP – Tokai Cape Research Centre (CRC)",5,0,5,2,1,2,2,{"$nulls":5},0,0,{"$nulls":3},7,1]
["Cape Town & Surrounds","TMNP - Tokai Manor",27,3,30,4,1,4,2,{"$nulls":5},0,0,{"$nulls":3},8,1]
["Cape Town & Surrounds","TMNP - Tokai Ranger",11,7,18,1,1,1,1,{"$nulls":5},0,0,{"$nulls":3},9,1]
["Cape Town & Surrounds","TMNP - Washhouses (Platteklip)",0,1,1,1,1,1,1,{"$nulls":5},0,0,{"$nulls":3},10,1]
["Cape Town & Surrounds","Travel Trade (Cape Town)",0,1,1,1,1,1,1,{"$nulls":5},0,0,{"$nulls":3},11,1]
["Eastern Cape","Addo - Mathyolweni Rest Camp",0,5,5,1,1,1,1,{"$nulls":5},0,0,{"$nulls":3},12,1]
["Eastern Cape","Addo - Woody Cape Section",10,0,10,1,1,1,2,{"$nulls":5},0,0]
["Eastern Cape","Addo Camp",45,12,57,4,1,4,2,{"$nulls":5},0,0,{"$nulls":3},{"$f":"E107*5","v":8685}]
["Eastern Cape","Addo - Kabouga",1,1,2,1,1,1,1,{"$nulls":5},0,0]
["Eastern Cape","Camdeboo ",18,3,21,1,1,1,1,{"$nulls":5},0,0]
["Eastern Cape","Mountain Zebra ",17,6,23,2,1,2,3,{"$nulls":5},0,0]
["Eastern Cape","NMMU and Frontier Regional Office (PE)",10,0,10,2,2,2,2,{"$nulls":5},0,0]
["Free State","Golden Gate - Gladstone",34,0,34,3,1,6,8,{"$nulls":5},0,0]
["Free State","Golden Gate - Glen Reenen Rest Camp ",2,8,10,1,0,1,5,{"$nulls":5},0,0]
["Free State","Golden Gate Hotel",16,13,29,2,1,2,3,{"$nulls":5},0,0]
["Garden Route","Bloukrans",5,0,5,1,1,1,0,{"$nulls":5},0,0]
["Garden Route","Diepwalle",5,1,6,1,1,1,1,{"$nulls":5},0,0]
["Garden Route","Farleigh",11,0,11,2,1,2,2,{"$nulls":5},0,0]
["Garden Route","Garden Route Office (Thesen Island)",47,5,52,2,1,3,4,{"$nulls":5},0,0]
["Garden Route","Goudveld",1,0,1,1,1,0,1,{"$nulls":5},0,0]
["Garden Route","Harkerville",6,0,6,3,2,3,1,{"$nulls":5},0,0]
["Garden Route","Knysna Scientist (Royal Hotel)",8,0,8,1,1,1,1,{"$nulls":5},{"$f":"IF(N35=\"\",0,IF(N35>6,1,VLOOKUP(N35,$T$1:$U$19,2,FALSE)))","v":0},{"$f":"ROUND(O35*E35,1)","v":0}]
["Garden Route","Natures Valley Rest Camp",0,2,2,0,1,1,1,{"$nulls":5},0,0]
["Garden Route","Rondevlei",7,0,7,2,1,1,1,{"$nulls":5},0,0]
["Garden Route","Saasveld Campus (George)",9,0,9,1,1,1,1,{"$nulls":5},0,0]
["Garden Route","Stormsriver Mouth ",26,13,39,4,2,4,2,{"$nulls":5},0,0]
["Garden Route","Stormsriver Village",8,0,8,2,1,2,1,{"$nulls":5},0,0]
["Garden Route","Wilderness",16,12,28,4,1,4,2,{"$nulls":5},0,0]
["Gauteng","Brooklyn",8,0,8,1,1,1,1,{"$nulls":5},0,0]
["Gauteng","Heidelberg",1,0,1,1,1,1,0,{"$nulls":5},0,0]
["Gauteng","SANParks Head Office (Groenkloof)",240,76,316,21,5,24,20,{"$nulls":5},0,0]
["Gauteng","Soshanguve",3,0,3,0,1,0,0,{"$nulls":5},0,0]
["Kruger National Park - North","Bateleur Bushveld Camp",0,3,3,1,1,1,1,{"$nulls":5},0,0]
["Kruger National Park - North","Giriyondo Border Gate ",0,2,2,1,1,1,1,{"$nulls":5},0,0]
["Kruger National Park - North","Letaba Rest Camp",10,19,29,2,1,2,1,{"$nulls":5},0,0]
["Kruger National Park - North","Mahlangeni Ranger",2,0,2,1,1,1,0,{"$nulls":5},0,0]
["Kruger National Park - North","Mopani Rest Camp",4,14,18,3,1,3,1,{"$nulls":5},0,0]
["Kruger National Park - North","Olifants Rest Camp",4,17,21,1,1,1,1,{"$nulls":5},0,0]
["Kruger National Park - North","Pafuri Gate",0,5,5,1,1,1,1,{"$nulls":5},0,0]
["Kruger National Park - North","Phalaborwa Gate",12,3,15,4,1,4,1,{"$nulls":5},0,0]
["Kruger National Park - North","Punda Maria Gate",9,5,14,1,1,1,1,{"$nulls":5},0,0]
["Kruger National Park - North","Punda Maria Rest Camp",2,6,8,1,1,1,1,{"$nulls":5},0,0]
["Kruger National Park - North","Shangoni Ranger",1,0,1,1,1,1,1,{"$nulls":5},0,0]
["Kruger National Park - North","Shimuwini Bushveld Camp",0,5,5,1,1,1,1,{"$nulls":5},0,0]
["Kruger National Park - North","Shingwedzi Rest Camp",5,13,18,3,1,3,1,{"$nulls":5},0,0]
["Kruger National Park - North","Sirheni Bushveld Camp",0,2,2,1,1,1,1,{"$nulls":5},0,0]
["Kruger National Park - North","Vlakteplaas Ranger",1,0,1,1,1,1,0,{"$nulls":5},0,0]
["Kruger National Park - North","Woodlands Ranger",35,0,35,1,1,1,0,{"$nulls":5},0,0]
["Kruger National Park – North","Pafuri Ranger",1,0,1,1,1,1,2,{"$nulls":5},0,0]
["Kruger National Park - South","Houtboschrand Ranger",2,0,2,1,1,1,0,{"$nulls":5},0,0]
["Kruger National Park - South","Nwanetsi Ranger",1,0,1,1,1,1,0,{"$nulls":5},0,0]
["Kruger National Park – South","Berg-en-Dal Rest Camp",3,8,11,3,1,3,2,{"$nulls":5},0,0]
["Kruger National Park – South","Biyamiti Bushveld Camp",0,2,2,1,1,1,1,{"$nulls":5},0,0]
["Kruger National Park – South","Crocodile Bridge Rest Camp",0,11,11,6,1,4,3,{"$nulls":5},{"$f":"IF(N67=\"\",0,IF(N67>6,1,VLOOKUP(N67,$T$1:$U$19,2,FALSE)))","v":0},{"$f":"ROUND(O67*E67,1)","v":0}]
["Kruger National Park – South","Kruger Gate",4,4,8,2,1,1,3,{"$nulls":5},0,0]
["Kruger National Park – South","Lower Sabie Rest Camp",6,16,22,3,1,3,3,{"$nulls":5},0,0]
["Kruger National Park – South","Malelane Gate",6,4,10,1,1,1,3,{"$nulls":5},0,0]
["Kruger National Park – South","Malelane Ranger",1,0,1,1,0,1,2,{"$nulls":5},0,0]
["Kruger National Park – South","Numbi Gate",0,4,4,3,1,3,1,{"$nulls":5},0,0]
["Kruger National Park – South","Orpen Gate",0,3,3,2,0,2,1,{"$nulls":5},0,0]
["Kruger National Park – South","Orpen Rest Camp",3,13,16,1,1,1,1,{"$nulls":5},0,0]
["Kruger National Park – South","Phabeni Gate",2,5,7,4,1,4,3,{"$nulls":5},0,0]
["Kruger National Park – South","Pretoriuskop Rest Camp",2,19,21,4,1,4,3,{"$nulls":5},0,0]
["Kruger National Park – South","Satara Rest Camp",10,14,24,2,1,2,1,{"$nulls":5},0,0]
["Kruger National Park – South","Skukuza Airport, Security and Flight Services ",23,2,25,4,1,4,3,{"$nulls":5},0,0]
["Kruger National Park – South","Skukuza Rest Camp",232,40,272,42,2,55,43,{"$nulls":5},0,0]
["Kruger National Park – South","Stolsnek Ranger",2,0,2,1,1,1,6,{"$nulls":5},0,0]
["Kruger National Park – South","Talamati Bushveld Camp",0,4,4,1,1,1,1,{"$nulls":5},0,0]
["Kruger National Park – South","Tshokwane Picnic and Ranger ",2,0,2,1,2,1,0,{"$nulls":5},0,0]
["Limpopo","Makhado",1,0,1,0,1,0,0,{"$nulls":5},0,0]
["Limpopo","Mapungubwe ",14,18,32,3,1,3,2,{"$nulls":5},0,0]
["Mpumalanga","Graskop / Sabie",1,0,1,0,1,0,0,{"$nulls":5},0,0]
["Limpopo","Marakele - Dithabaneng Ranger",7,0,7,1,1,0,0,{"$nulls":5},0,0]
["Limpopo","Marakele Gate",12,6,18,1,1,1,1,{"$nulls":5},0,0]
["Northern Cape","Arid Regional Office (Upington)",4,0,4,1,1,1,1,{"$nulls":5},0,0]
["Northern Cape","Augrabies Rest Camp",13,6,19,3,1,3,1,{"$nulls":5},0,0]
["Northern Cape","Kgalagadi - Mata Mata ",1,8,9,1,1,1,1,{"$nulls":5},0,0]
["Northern Cape","Kgalagadi - Nossob ",1,6,7,2,1,2,1,{"$nulls":5},0,0]
["Northern Cape","Kgalagadi - Twee Rivieren ",15,8,23,4,1,4,1,{"$nulls":5},0,0]
["Northern Cape","Kimberley Veterinary Services",18,0,18,3,1,3,2,{"$nulls":5},0,0]
["Northern Cape","Mokala – Lilydale",7,8,15,1,1,1,1,{"$nulls":5},0,0]
["Northern Cape","Mokala - Mosu Lodge",2,2,4,3,1,3,7,{"$nulls":5},0,0]
["Northern Cape","Richtersveld (Sendelingsdrif)",8,5,13,3,1,3,3,{"$nulls":5},0,0]
["Northern Cape","Tankwa Karoo ",6,2,8,1,1,1,1,{"$nulls":5},0,0]
["West Coast","Namaqua - Groenrivier",0,1,1,1,1,1,1,{"$nulls":5},0,0]
["West Coast","Namaqua - Kamieskroon",4,0,4,2,1,2,1,{"$nulls":5},{"$f":"IF(N99=\"\",0,IF(N99>6,1,VLOOKUP(N99,$T$1:$U$19,2,FALSE)))","v":0},{"$f":"ROUND(O99*E99,1)","v":0}]
["West Coast","Namaqua – Skilpad",11,1,12,1,1,1,0,{"$nulls":5},0,0]
["West Coast","West Coast – Geelbek",0,2,2,1,1,1,0,{"$nulls":5},0,0]
["West Coast","West Coast Admin Offices (Langebaan)",13,1,14,1,1,1,2,{"$nulls":5},0,0]
["Western Cape","Agulhas - Bosheuwel",8,1,9,1,1,1,1,{"$nulls":5},0,0]
["Western Cape","Agulhas Admin Offices",9,5,14,1,1,1,3,{"$nulls":5},0,0]
["Western Cape","Bontebok ",5,4,9,1,1,1,2,{"$nulls":5},0,0]
["Western Cape","Karoo Rest Camp",11,6,17,4,1,4,1,{"$nulls":5},0,0]
[null,"Grand Total",{"$f":"SUM(C3:C106)","v":1229},508,1737,236,110,251,214,{"$nulls":6},{"$f":"SUM(P3:P106)","v":0}]

{"sheet":"I Compliance","index":4,"n_rows":331,"n_cols":8,"rows_kept":331,"merged":[[0,0,0,2],[2,1,2,2],[4,0,8,0],[4,1,8,1],[4,3,8,3],[4,4,8,4],[4,5,8,5],[12,1,12,2],[29,1,29,2],[36,0,44,0],[36,1,44,1],[36,3,44,3],[36,4,44,4],[36,5,44,5],[45,0,58,0],[45,1,58,1],[45,3,58,3],[45,4,58,4],[45,5,58,5],[67,1,67,2],[72,1,72,2],[82,0,85,0],[82,1,85,1],[82,3,85,3],[82,4,85,4],[82,5,85,5],[86,1,95,1],[86,3,95,3],[86,4,95,4],[86,5,95,5],[97,1,97,2],[99,0,102,0],[99,1,102,1],[99,3,102,3],[99,4,102,4],[99,5,102,5],[112,0,117,0],[112,1,117,1],[112,3,117,3],[112,4,117,4],[112,5,117,5],[119,1,119,2],[121,0,124,0],[121,1,124,1],[121,3,124,3],[121,4,124,4],[121,5,124,5],[133,1,133,2],[140,1,140,2],[148,1,148,2],[160,1,160,2],[165,1,165,2],[172,1,172,2],[177,1,177,2],[181,1,181,2],[184,1,184,2],[185,0,187,0],[185,1,187,1],[185,3,187,3],[185,4,187,4],[185,5,187,5],[188,1,190,1],[188,3,190,3],[188,5,190,5],[191,0,193,0],[191,1,193,1],[191,3,193,3],[191,4,193,4],[191,5,193,5],[194,1,196,1],[194,3,196,3],[194,5,196,5],[197,0,199,0],[197,1,199,1],[197,3,199,3],[197,4,199,4],[197,5,199,5],[200,1,201,1],[200,3,201,3],[200,5,201,5],[206,0,210,0],[206,1,210,1],[206,3,210,3],[206,4,210,4],[206,5,210,5],[211,1,211,2],[217,0,224,0],[217,1,224,1],[217,3,224,3],[217,4,224,4],[217,5,224,5],[226,1,226,2],[232,1,232,2],[236,1,236,2],[245,1,245,2],[251,1,251,2],[256,1,256,2],[261,1,261,2],[263,1,263,2],[271,0,272,0],[271,1,272,1],[271,2,272,2],[271,4,272,4],[271,5,272,5],[274,0,279,0],[274,1,279,1],[274,3,279,3],[274,4,279,4],[274,5,279,5],[280,1,282,1],[280,3,282,3],[280,5,282,5],[288,1,288,2],[290,1,290,2],[292,1,292,2],[293,0,298,0],[293,1,298,1],[293,3,298,3],[293,4,298,4],[293,5,298,5],[302,1,302,2],[306,1,306,2],[308,1,308,2],[314,1,314,2],[316,1,316,2],[318,1,318,2],[321,1,321,2],[322,0,329,0],[322,1,329,1],[322,3,329,3],[322,4,329,4],[322,5,329,5]]}
["Confirmation of Compliance to Special Conditions of Contracting",{"$nulls":6},"Comply"]
["No","Category","Requirement","Required","Response","Comment",null,"Not Comply"]
["1. ","Single Service Aggregator (SSA)"]
["1.1. ",null,"Provide evidence of experience in managing services, associated contracts and vendors as a SSA","Mandatory"]
["1.2. ",null,"Contract Governance Capacity with reference to:","Mandatory"]
[null,null,"-        Risk Management"]
[null,null,"-        Legal"]
[null,null,"-        Auditing"]
[null,null,"-        Contract Management Specialist"]
["1.3. ",null,"Supporting technologies for governing various contracts","Mandatory"]
["1.4. ",null,"Service Delivery Manager available on site (Pretoria) at all times. Therefore, the SDM should have a delegated assistant with decision making capacity to stand in when the SDM is not on site for longer than 2 hours.","Mandatory"]
["1.5. ",null,"All new staff deployed on site must be introduced to SANParks.","Mandatory"]
["2","Centralised Single Point of Contact (SPoC) Service Desk Aggregator"]
["2.1. ",null,"Incident Management (1500 – 2000 pm)","Mandatory"]
["2.2.",null,"Telephone Calls received (2000 – 3000 pm)","Mandatory"]
["2.3.",null,"First Call Resolution rate","Mandatory"]
["2.4.",null,"Severity 1 and 2 calls (< 15 pm)","Mandatory"]
["2.5.",null,"Incident Management System","Mandatory"]
["2.6.",null,"Incident logging channels (email, telephone, IM, Text, Web forms, automated, personal)","Mandatory"]
["2.7.",null,"Escalation process","Mandatory"]
["2.8.",null,"After normal working hours support 24/7/365","Mandatory"]
["2.9.",null,"Comprehensive Reporting per Severity level, Classification, Location, Application, User, Service","Mandatory"]
["2.10.",null,"Require integrated feed of all incidents, call statistics, IMACD and relevant metrics from Aggregator’s system into SANParks Data Warehouse on MS SQL so that SANParks has access to the data for own use and analyses over and above what would be provided by Aggregator","Mandatory"]
["2.11.",null,"End-to-end responsibility for all Incidents including management of sub-contractors, third party support vendors, SANParks support staff","Mandatory"]
["2.12.",null,"Comprehensive Problem Management","Mandatory"]
["2.13.",null,"Knowledge Management","Mandatory"]
["2.14.",null,"Event Management","Mandatory"]
["2.15.",null,"Request Fulfilment","Mandatory"]
["2.16.",null,"Task Management","Mandatory"]
["3.   ","User Support (Desktops, tablets and cell phones)"]
["3.1. ",null,"User data backup / transfer","Mandatory"]
["3.2.",null,"Building images for computer equipment to be used by hardware vendor in setting up equipment prior to delivery","Mandatory"]
["3.3.",null,"Restore of data on request in less than 2 days","Mandatory"]
["3.4.",null,"IMACD services (250 pm)","Mandatory"]
["3.5.",null,"Managing AD groups for role/ function based access to systems and Internet","Mandatory"]
["3.6.",null,"Quarterly review of access","Mandatory"]
["3.7. ",null,"Full support on standardised software","Mandatory"]
[null,null,"- Operating System (Windows / iOS / Linux / Android)"]
[null,null,"- MS Office"]
[null,null,"- SharePoint"]
[null,null,"- Adobe Reader"]
[null,null,"- Mimecast"]
[null,null,"- Email"]
[null,null,"- Bitlocker(MBAM)"]
[null,null,"- Automated backups"]
["3.8. ",null,"Full Maintenance and Management of CMDB on all Hardware, Software and Configuration Items (CI) tied up to SANParks Asset Register (where relevant) broken down to (where relevant) - monthly:","Mandatory"]
[null,null,"- User"]
[null,null,"- Location"]
[null,null,"- Functional Area (Tourism, Finance, Human Capital, Conservation, ExCo, Board, Biodiversity Unit, Research, etc.)"]
[null,null,"- Asset Number (Where applicable)"]
[null,null,"- Serial Number (Where applicable)"]
[null,null,"- Operating System"]
[null,null,"- Office version"]
[null,null,"- Any local application / software"]
[null,null,"- Make"]
[null,null,"- Model"]
[null,null,"- Installation Date"]
[null,null,"- Warranty Date"]
[null,null,"- Useful life end-date"]
["3.9.",null,"Integrated feed of all CIs on the CMDB into SANParks Data Warehouse on MS SQL so that SANParks has access to the data for own use and analyses over and above what would be provided by Aggregator","Mandatory"]
["3.10.",null,"Password management (describe process recommended to manage passwords)","Mandatory"]
["3.11.",null,"Software License Management","Mandatory"]
["3.12.",null,"Identification of Training / User Intervention requirements and assisting in setting up processes to drive improved awareness","Mandatory"]
["3.13.",null,"Monthly Comprehensive Reporting per Classification, Location, Application, User, Service","Mandatory"]
["3.14.",null,"Task management","Mandatory"]
["3.15.",null,"Recommendations on equipment upgrades / model replacements","Mandatory"]
["3.16.",null,"Manage / recommend hardware refresh cycles per site pro-actively on a quarterly basis","Mandatory"]
["4.   ","Desktop Configuration"]
["4.1. ",null,"Setup up of services on multiple devices (Desktops, Notebooks, Tablets, Cell Phones)","Mandatory"]
["4.2. ",null,"IMACDs on desktop equipment completed within 3 days","Mandatory"]
["4.3. ",null,"Preparation of images within 2 days","Mandatory"]
["4.4. ",null,"IMACD services at all sites","Mandatory"]
["5.   ","Networks"]
["5.1. ",null,"Management of Network Service Providers (own or third parties)","Mandatory"]
["5.2.",null,"Monthly Comprehensive IMACD service for network requirements","Mandatory"]
["5.3.",null,"Bi-Annual Preventative maintenance on network equipment (Switches, Wireless Access Points, Routers, Associated cabinets and Uninterruptable Power Supply equipment, etc.)","Mandatory"]
["5.4.",null,"Pro-active and reactive Monitoring and Management of the full network and all components including but not limited to performance, configuration, outages, failures, improvements, etc.","Mandatory"]
["5.5. ",null,"Monthly Reporting on network performance, utilisation, issues, IMACDs, etc.","Mandatory"]
["5.6.",null,"Carry stock of critical network equipment (switches and Wireless Access Points) to facilitate speedy swop out in case of equipment failure.in core areas","Mandatory"]
["5.7.",null,"Logical segregation of the network (VLAN) as per best practice and security considerations","Mandatory"]
["5.8.",null,"Monthly Maintenance of all network diagrams including asset inventory and data flow as required by PCI DSS","Mandatory"]
["5.9.",null,"Maintenance of CMDB information for all network components","Mandatory"]
["5.10.",null,"Facilitating, including sub-contracted service providers (e.g. Vodacom, MTN, Telkom, Cell C) and managing user remote access to the network and systems including but not limited to:","Mandatory"]
[null,null,"- Cellular data"]
[null,null,"- VPN"]
[null,null,"- APN"]
["5.11.",null,"Managing and facilitating perimeter security at all network entry points including but not limited to:","Mandatory"]
["",null,"- Firewalls"]
["",null,"- Intrusion prevention"]
["",null,"- Intrusion detection"]
["",null,"- Online presence"]
["",null,"- Disaster Recovery Site"]
["",null,"- Cloud environments"]
["",null,"- Visitors"]
["",null,"- Conference Venues"]
["",null,"- Staff"]
["5.12.",null,"High uptime (>99%) required – no exclusions for third party dependency","Mandatory"]
["6.   ","Server Management",null,"Heading"]
["6.1. ",null,"Server availability (>99%) 24x7x365 in High Availability mode (where applicable)","Mandatory"]
["6.2. ",null,"Patch Management  ","Mandatory"]
[null,null,"- n for high impact security patches"]
[null,null,"- n -1 for other important security patches"]
[null,null,"- n -3 for other patches"]
["6.3.",null,"Firmware is updated when required on a quarterly basis","Mandatory"]
["6.4.",null,"Annual Revue to ensure Operating Systems are upgraded in consultation with application vendors – must drive process","Mandatory"]
["6.5.",null,"Full Maintenance and Management of CMDB on all Hardware, Software and Configuration Items (CI)","Mandatory"]
["6.6.",null,"Management of any / all cloud infrastructure, software, platforms","Mandatory"]
["6.7.",null,"Quarterly Capacity planning is performed where applicable","Mandatory"]
["6.8.",null,"Full configuration / setup documentation of all servers and applications with emphasis on security standards","Mandatory updates whenever anything changes"]
["6.9.",null,"Optimising server performance","Mandatory"]
["6.10.",null,"Disaster recovery environment management","Mandatory"]
["6.11.",null,"Disaster recovery testing every quarter","Mandatory"]
["6.12.",null,"Management of facilities (server rooms, communication environment, DR services) including","Mandatory"]
[null,null,"- Access Management (Physical Security)"]
[null,null,"- Power"]
[null,null,"- Environmental management"]
[null,null,"- Fire suppression"]
[null,null,"- Servicing of all components"]
["6.13.",null,"Backup of servers, applications and data (Daily / Weekly / Monthly / Annually)","Mandatory"]
["7.   ","Database Administration"]
["7.1. ",null,"Database availability >99%  24x7x365 in High Availability mode (where applicable)","Mandatory"]
["7.2. ",null,"Patch Management  ","Mandatory"]
[null,null,"- n -1 for high impact security patches"]
[null,null,"- n -3 for other patches"]
[null,null,"- Immediate for critical patches"]
["7.3.",null,"Annual review to ensure  Databases are upgraded in consultation with application vendors  – must drive process","Mandatory"]
["7.4.",null,"Monthly Full Maintenance and Management of CMDB on all Databases","Mandatory"]
["7.5.",null,"Management of any / all cloud-based databases for IaaS and PaaS deployments","Mandatory"]
["7.6.",null,"Monthly Capacity planning is performed where applicable","Mandatory"]
["7.7.",null,"Full configuration / setup documentation of all databases with emphasis on security standards after/when changes happed","Mandatory"]
["7.8.",null,"Database performance optimisation","Mandatory"]
["7.9.",null,"Disaster recovery testing every quarter","Mandatory"]
["7.10.",null,"Daily Backup of databases","Mandatory"]
["8.   ","Change Management"]
["8.1. ",null,"Facilitate and manage comprehensive change management in the environment(s) on a weekly basis","Mandatory"]
["8.2.",null,"Must tie back to CMDB management of all CIs","Mandatory"]
["8.3.",null,"Manage all service partners in any change","Mandatory"]
["8.4.",null,"Reporting on success / failures to end-user representatives","Mandatory"]
["8.5.",null,"Communication on intended / planned changes","Mandatory"]
["8.6.",null,"Patch and release management – preferably automated","Mandatory"]
["9.   ","ICT Facility Management"]
["9.1. ",null,"Managing all physical access to ICT facilities","Mandatory"]
["9.2.",null,"Protecting remote network equipment such as routers, switches, WAPs, IP PABXs.","Mandatory"]
["9.3.",null,"Facilitating the cleaning of ICT facilities","Mandatory"]
["9.4.",null,"Managing events / incidents in facilities","Mandatory"]
["9.5.",null,"Facilitate with own resources / service providers the servicing of air conditioners and UPS devices at main hosting environments (Server rooms / cabinets) once per quarter","Mandatory"]
["9.6.",null,"Monitoring of environmental alarms and addressing issues that may arise from the monitoring.","Mandatory"]
["9.7.",null,"Proactive management of environment to detect and prevent incidents from occurring on a continuous basis","Mandatory"]
["10.  ","Disaster Recovery Management"]
["10.1.",null,"Management of all sites in use for Disaster Recovery","Mandatory"]
["10.2.",null,"Ensuring all data is backed up according to the approved Backup SOP and standards on a daily basis","Mandatory"]
["10.3.",null,"Perform data restoration testing monthly","Mandatory"]
["10.4.",null,"Facilitate and perform Disaster Site data integrity testing quarterly","Mandatory"]
["10.5.",null,"Alerts on any critical events with immediate escalation","Mandatory"]
["10.6.",null,"Review of event logs on a weekly basis","Mandatory"]
["10.7.",null,"Audit logs (non-editable) of all events (must be immediate)","Mandatory"]
["10.8.",null,"Alerts on log file tampering with immediate escalation","Mandatory"]
["10.9.",null,"Immediate Alerts on configuration changes if not planned as part of Change Management process – Verify in any case against planned change and escalate if not commensurate with planned change","Mandatory"]
["10.10",null,"Bi-annual Penetration testing Internal and External","Mandatory"]
["10.11",null,"Monthly Comprehensive reporting","Mandatory"]
["11.  ","Email Archiving"]
["11.1.",null,"Ensure that the Mimecast email archiving and associated services including Targeted Threat Protection is managed","Mandatory"]
["11.2.",null,"Perform required changes as per Change Management Process","Mandatory"]
["11.3.",null,"Perform any requested data extract as reasonably requested from time to time","Mandatory"]
["11.4.",null,"Manage Mimecast as Service Provider which includes taking over of any existing contractual agreement","Mandatory"]
["12.  ","SharePoint Management and Support"]
["12.1.",null,"Monitor and manage the on-premise SharePoint environment and optimise pro-actively","Mandatory"]
["12.2.",null,"Monitor and manage the on-line SharePoint environment and optimise pro-actively","Mandatory"]
["12.3.",null,"Monitor and manage the syncing between the on-premise and on-line SharePoint and pro-actively attend to syncing challenges","Mandatory"]
["12.4.",null,"Provide user administration support and best practices knowledge sharing","Mandatory"]
["12.5.",null,"Develop and maintain custom web-parts on SharePoint","Mandatory"]
["12.6.",null,"Provide support for external Board members","Mandatory"]
["13.  ","BizTalk Management and Support"]
["13.1.",null,"Monitor and manage the BizTalk environment and optimise pro-actively","Mandatory"]
["13.2.",null,"Develop and deploy new web services on request","Mandatory"]
["13.3.",null,"Optimise and deploy new web services on request","Mandatory"]
["13.4.",null,"Provide support and best practices knowledge sharing","Mandatory"]
["14.  ","Enterprise Mobility and Security Management and Support"]
["14.1.",null,"Monitor and manage the EMS environment and optimise pro-actively","Mandatory"]
["14.2.",null,"Provide support to users in terms of setup and maintenance","Mandatory"]
["14.3.",null,"Perform remote wiping of devices on request or on termination of services","Mandatory"]
["15.  ","Password reset tool Management and Support"]
["15.1.",null,"Monitor and manage the Password Management Tool","Mandatory"]
["15.2.",null,"Provide support to users in terms of setup and maintenance","Mandatory"]
["16.  ","Service Levels"]
["16.1.",null,"24-hour operations","< 2 hours"]
[null,null,"(Includes all web-based transactions and associated servers, applications and networks)"]
[null,null,"Severity 1 – Immediate response, Targeted resolution within 2 hours"]
["16.2.",null,"7 day per week Tourism operations – Times to correspond with SANParks published gate times per Park / camp (See Annexure M ) plus all scheduled overnight services / processes","< 4 hours"]
["",null,"(Relates to central systems for Tourism business as well major site failures where more than 50% of business capability, including printing is lost)"]
["",null,"Severity 2 – Immediate response, Targeted resolution within 4 business hours"]
["16.3.",null,"7 day per week other operations – 07:30 to 17:00","< 4 hours"]
[null,null,"(Relates to all central systems as well major site failures where more than 50% of business capability, including printing is lost)"]
[null,null,"Severity 3 – Immediate response, Targeted resolution within 4 business hours"]
["16.4.",null,"7 day per week Tourism User support – 06:00 to 19:00","< 6 hours"]
["",null,"(Relates to users in Tourism roles issues negatively impacting on business"]
["",null,"Severity 4 – Immediate response, Targeted resolution within 6 business hours"]
["16.5.",null,"7 day per week other User support – 07:30 to 17:00","< 8 hours"]
[null,null,"(Relates to all other users’ roles with issues negatively impacting on business)"]
[null,null,"Severity 5 – Immediate response, Targeted resolution within 8 business hours"]
["16.6.",null,"VIP support","< 4 hours"]
["",null,"Severity VIP – Immediate response, Targeted resolution within 4 hours (25 VIPs)"]
["16.7.",null,"Telephonic call logging – Answered within 40 seconds","> 80%"]
["16.8.",null,"Calls dropped","< 2%"]
["16.9.",null,"Email logging – Reference number issued","< 1 hour"]
["16.10",null,"Reference number issued – any channel",{"v":1,"d":"100%"}]
["16.11",null,"Please provide information from where each site will be serviced from:","Mandatory"]
[null,null,"- Name of Service Provider (SP)"]
[null,null,"- Address of SP"]
[null,null,"- Distance of SP to SANParks site (km and time)"]
[null,null,"- The number of support staff and their skills / certification per site"]
["17.  ","Network Single Service Aggregator (SSA)"]
["17.1.",null,"List of underlying network infrastructure vendors with which you have an existing or planned relationship","> 3"]
["17.2.",null,"Any joint ventures established to service SANParks – please provide information","Mandatory"]
["17.3.",null,"Transparent costing / mark-up model that may be subjected to audit by SANParks or its appointed representatives from time to time on an annual basis","Mandatory"]
["17.4.",null,"All sites are included in the proposal","Mandatory"]
["17.5.",null,"Network must use MPLS or similar topology. Please state the MPLS, or where more than one MPLS is connected, the information of all the MPLS service providers.","Mandatory"]
["17.6.",null,"Underlying network infrastructure vendors closest POP to each site must be provided including:","Mandatory"]
[null,null,"- Name of POP"]
[null,null,"- Address of POP"]
[null,null,"- GPS coordinates of POP"]
[null,null,"- Distance of POP to SANParks site"]
[null,null,"- Recommended last mile infrastructure proposed"]
[null,null,"- Bandwidth per site"]
[null,null,"- Proposed alternative connectivity for the site"]
["17.7.",null,"Evidence that number of VSAT sites have been reduced and that no Diginet, ME or Fibre last mile connectivity has been converted back to VSAT","Mandatory"]
["18.  ","Internet"]
["18.1.",null,"All sites to have access to the Internet preferably through a single centralised service on the MPLS with redundancy","Mandatory"]
["18.2.",null,"Access must be resilient","Mandatory"]
["18.3.",null,"High uptime of > 99%","Mandatory"]
["18.4.",null,"Firewall – please provide detail","Mandatory"]
["18.5.",null,"Access to Internet must be managed via AD groups that will integrate with the proposed Proxy / Firewall","Mandatory"]
["19.  ","WAN SLAs"]
["19.1.",null,"High - Redundant / resilient last mile connectivity using different technologies. 99%+ uptime required","Mandatory"]
["19.2.",null,"Medium – Onerous SLA with penalties. 98%+ uptime required","Mandatory"]
["19.3.",null,"Low – Less onerous SLA with penalties. 95%+ uptime required","Mandatory"]
["20.  ","IP telephony services"]
["20.1.",null,"Manage the IP Telephony service provider for the duration of the current agreement","Mandatory"]
["20.2.",null,"Actively participate in the planning and project management for extending the service to more sites","Mandatory"]
["20.3.",null,"Managing and configuring the networks to allow for VOIP and LCR","Mandatory"]
["20.4.",null,"Manage the various components of the Contact Centre applications","Mandatory"]
["20.5.",null,"Provide user support on IP telephony issues","Mandatory"]
["20.6.",null,"Manage all the other components that is part of the solution as described in detail above (2.2.3)","Mandatory"]
["20.7.",null,"Setup of new IP phones or swapping out where required from existing SANParks stock","Mandatory"]
["20.8.",null,"Integrating telephone administration and cost management with AD / FIM","Mandatory"]
["21.  ","Remote access services"]
["21.1.",null,"Manage and improve on the current APN solution available to SANParks as per specifications in 2.2.4 above.","Mandatory"]
["21.2.",null,"Provide user support on connectivity issues which includes a full service that incorporates managing the APN and cellular service providers","Mandatory"]
["21.3.",null,"Provide support on VPN access including multi-factor authentication where applicable","Mandatory"]
["21.4.",null,"Manage the issue and setup of new cellular data cards as part of IMACD service including provisioning on the APN","Mandatory"]
["21.5.",null,"Manage the recovery of cellular data cards in respect of staff whose service has been terminated","Mandatory"]
["22.  ","Bulk e-mail service"]
["22.1.",null,"Provide a description of the proposed solution","Mandatory"]
["22.2.",null,"Indicate what steps will be taken to prevent black-listing of SANParks domain","Mandatory"]
["22.3.",null,"Describe the proposed unsubscribe function that will be provided","Mandatory"]
["22.4.",null,"Explain how the unsubscribe responses will be integrated through web services on BizTalk into any back-end application","Mandatory"]
["23.  ","Bulk SMS service"]
["23.1.",null,"Provide a description of the proposed solution","Mandatory"]
["23.2.",null,"Describe how the usage of SMS will be managed and billed to SANParks","Mandatory"]
["23.3.",null,"Describe the proposed opt-out function that will be provided","Mandatory"]
["23.4.",null,"Explain how the opt-out responses will be integrated through web services on BizTalk into any back-end application","Mandatory"]
["24.  ","Disaster Recovery Site"]
["24.1.",null,"Provide proposal for cloud based DR services based on requirements as per 2.3.1","Mandatory"]
["25.  ","Website Hosting"]
["25.1.",null,"Provide proposal for cloud based website hosting services based on requirements as per 2.3.2","Mandatory"]
["25.2.",null,"Describe your experience in security hardening services on Linux CentOS servers and MySQL databases, to comply with Payment Card Industry Data Security Standard (PCI DSS) and POPIA","Mandatory"]
["25.3.",null,"Describe your experience in interfacing Linux (CentOS) based Apache & PHP servers with backend MySQL","Mandatory"]
["25.4.",null,"At least 100 MB / second Internet bandwidth requirement with no capping or shaping for both the website and the webcams individually","Mandatory"]
["25.5.",null,"Describe your costed proposal to provide redundancy on the connectivity","Mandatory"]
["25.6.",null,"High uptime / availability of network and services >99.8%","Mandatory"]
["25.7.",null,"Availability of support (24x7x365)","Mandatory"]
["25.8.",null,"Data centre requirement - at least Tier 3","Mandatory"]
[]
["25.9.",null,"Online firewall service – see 31.1","Information / Mandatory"]
["25.10",null,"Describe your expert Level in management of Apache environment including:","Mandatory"]
[null,null,"- Setup of cluster"]
[null,null,"- Video Streaming"]
[null,null,"- SSL"]
[null,null,"-  Staging / development environment and push to operational environment"]
[null,null,"- Virtual host and subsite redirects"]
["25.11",null,"Describe your expert Level in management of MySQL including:","Mandatory"]
["",null,"- Cluster setup"]
["",null,"- Encryption at rest and transmission"]
["25.12",null,"Describe your proposed backup service of the website environment in line with best practices","Mandatory"]
["25.13",null,"Describe how you propose web-based email and SMS service based on information captured on the Website or monitoring services","Mandatory"]
["25.14",null,"Require metrics to measure bandwidth usage by the different components of the website","Mandatory"]
["25.15",null,"DNS hosting and Management","Mandatory"]
["25.16",null,"Secure FTP services or viable more secure alternative","Mandatory"]
["26.  ","Website Development Support"]
["26.1.",null,"Describe your experience and proposal for this service as detailed under 2.3.2","Mandatory"]
["27.  ","Cloud Services"]
["27.1.",null,"Provide proposal for cloud services based on requirements as per 2.3.3","Mandatory"]
["28.  ","Security Operations Centre Service (SOC)"]
["28.1.",null,"Facilitate, coordinate and manage a SIEM and SOC service for SANParks with centralised security log environment taking input from, but not limited to:","Mandatory"]
[null,null,"- Operating Systems on servers"]
[null,null,"- Database activities"]
[null,null,"- Network and associated end-point device activities"]
[null,null,"- Applications (Administrative access)"]
[null,null,"- Administrator activities"]
["28.2.",null,"Immediate Security event notification and escalation services as per SANParks SOP","Mandatory"]
["28.3.",null,"Weekly Analysis of log files to search for contentious events","Mandatory"]
["28.4.",null,"Suggest and implement corrective measures to prevent security compromising events","Mandatory"]
["29.  ","Vulnerability assessments"]
["29.1.",null,"Conduct regular internal vulnerability assessments quarterly","Mandatory"]
["29.2.",null,"Discuss and make recommendations for improving the environment and remediate","Mandatory"]
["29.3.",null,"Provide evidence of experience in doing vulnerability assessments using Nessus scanning tool","Mandatory"]
["30.  ","Multi-factor authentication"]
["30.1.",null,"Provide multi-factor authentication services to all users that administers / manages in-scope Card holder and associated environments (on premise and in the cloud) as per 2.4.3","Mandatory"]
["31.  ","Perimeter Protection Services"]
["31.1.",null,"Provide perimeter protection services to SANParks as per 2.4.4","Mandatory"]
["31.2.",null,"Actively manage Firewall and Proxy server rules","Mandatory"]
["31.3.",null,"Quarterly review all firewall and proxy server rules and settings to ensure that it complies to best practice and SANParks Policies, SOPs and standards","Mandatory"]
["31.4.",null,"Apply same rule sets to all firewalls / proxy servers deployed in SANParks environment","Mandatory"]
["31.5.",null,"Manage all additional perimeter protection services that may be deployed over time in line with Security Incident SOP and standards","Mandatory"]
["32.  ","PCI DSS Governance and Monitoring Service"]
["32.1.",null,"Provide PCI DSS services to SANParks as per 2.4.5","Mandatory"]
["33.  ","IT Governance and Enterprise Architecture Services"]
["33.1.",null,"Provide IT Governance and Enterprise Architecture services to SANParks as per 2.5.1","Mandatory"]
["34.  ","IT Maturity and Innovation services"]
["34.1.",null,"Provide IT Maturity improvement and Innovation services to SANParks as per 2.5.2","Mandatory"]
["34.2.",null,"Quarterly  innovation meetings with SANParks","Mandatory"]
["35.  ","Quality Assurance service"]
["35.1.",null,"Independent assurance services relating to:","Mandatory"]
[null,null,"-       Accuracy of any service metrics provided"]
[null,null,"-        User satisfaction assessments"]
[null,null,"o     After closure of each incident"]
[null,null,"o     After completion of each IMACD"]
[null,null,"o     After fulfilling any task"]
[null,null,"o     After closure of any problem ticket"]
[null,null,"Quarterly overall user satisfaction surveys"]
["35.2.",null,"See through pricing for any subcontracted service that is open for auditing by SANParks or a nominee","Mandatory"]

{"sheet":"J Price WAN","index":5,"n_rows":261,"n_cols":35,"rows_kept":261,"merged":[[0,10,0,11],[1,10,1,11],[1,15,1,23],[1,24,1,32],[2,10,2,11]]}
[]
["A","B","C","D","E","F","G","H","I","J","K",null,"L","M","N","Primary Connectivity",{"$nulls":8},"Redundant Connectivity",{"$nulls":8},"TOTAL","TOTAL"]
["WAN","Region","Park","Site Name","Curr WAN","Curr BW","Site Class","Site Size","Site Type","Required BW","GPS Coordinates",null,"Phone","Address","Comment","Type of Connectivity (Diginet, DSL, Fibre, ME, VSAT, Cellular Data, etc.)","Bandwidth \nPrimary (kbps)","Closest POP Name","POP GPS Coordinates","Distance from site (kms)","Installation Cost","Monthly recurring cost","Annual recurring cost","Total cost over 5 years","Type of Connectivity (Diginet, DSL, Fibre, ME, VSAT, Cellular Data, etc.)","Bandwidth \nPrimary (kbps)","Closest POP Name","POP GPS Coordinates","Distance from site (kms)","\nInstallation Cost","\nMonthly recurring cost","\nAnnual recurring cost","\nTotal cost over 5 years","Total cost over 5 years","Total cost over 10 years"]
["Yes","Cape","TMNP","Boulders Beach","Fibre Link",5000,"H","S","G",10000,-34.195673,18.449433,"(021) 786-2329","1 Kleintuin Road, SIMONS TOWN",{"$nulls":8},{"$f":"V4*12","v":0},{"$f":"W4*5+U4","v":0},{"$nulls":7},{"$f":"AE4*12","v":0},{"$f":"AF4*5+AD4","v":0},{"$f":"AG4+X4","v":0},{"$f":"AH4*2","v":0}]
["Yes","Cape","TMNP","Boulders Gate 2 (in place of Orange Kloof)","Microwave",5000,"H","S","G",5000,-34.195673,18.449433,"(021) 786-2329","1 Kleintuin Road, SIMONS TOWN",{"$nulls":8},{"$f":"V5*12","v":0},{"$f":"W5*5+U5","v":0},{"$nulls":7},0,0,0,{"$f":"AH5*2","v":0}]
["Yes","Cape","TMNP","Buffelsfontein Visitors Centre (BVC)","Fibre",10000,"L","S","CA",{"$f":"F6","v":10000},-34.312926,18.449199,"(021) 780-9204","Main Road / Plateau Road (M4 / M65), Cape Point, Smitswinkel bay, SIMONS TOWN",{"$nulls":8},{"$f":"V6*12","v":0},{"$f":"W6*5+U6","v":0},{"$nulls":7},0,0,0,0]
["Yes","Cape","TMNP","Cape Point Gate","Fibre",10000,"H","V","G",10000,-34.261491,18.457997,"(021) 780-9526","Main Road / Plateau Road (M4 / M65), Cape Point, Smitswinkel bay, SIMONS TOWN",{"$nulls":8},0,0,{"$nulls":7},0,0,0,0]
["Yes","Cape","TMNP","Cape Town Technical Offices - Kuilsrivier","Fibre Link",10000,"M","M","A",10000,-33.908928,18.682871,"(021) 900-9060","Office 121, Ipic shopping Centre, Soneike, cnr off Bottelary rd and Amadel dr, KUILSRIVIER",{"$nulls":8},{"$f":"V8*12","v":0},{"$f":"W8*5+U8","v":0},{"$nulls":7},0,0,{"$f":"AG8+X8","v":0},{"$f":"AH8*2","v":0}]
["Yes","Cape","TMNP","Klaasjagersberg Ranger ","Microwave",5000,"L","S","CA",5000,-34.237031,18.415843,"(021) 780-9101","Main Road / Plateau Road (M4 / M65), Cape Point, Smitswinkel bay, SIMONS TOWN",{"$nulls":8},0,0,{"$nulls":7},0,0,0,0]
["Yes","Cape","TMNP","Kloofnek Ranger ","Fibre",5000,"H","L","RA",5000,-33.94109,18.394729,"(021) 689-4111","6 Signal Hill Road, Kloofnek, off Kloof Street, CAPE TOWN",{"$nulls":8},0,0,{"$nulls":7},0,0,0,0]
["Yes","Cape","TMNP","Marine Office, Slangkop Tented Camp","Microwave",5000,"M","M","CA",5000,-34.146145,18.320123,"(021) 783-1862","South along Lighthouse Road from Kommetjie, Opposite No 45 Lighthouse Road, Turn west next to Garages, Building on left with Orange tiled roof, most western end of building (closest to sea) next to tented camp, KOMMETJIE",{"$nulls":8},0,0,{"$nulls":7},0,0,0,0]
["Yes","Cape","TMNP","Newlands WfFire ","Fibre",5000,"H","M","RA",5000,-33.968078,18.450857,"(021) 689-7438","Newlands forestry Station, Union Avenue, CAPE TOWN",{"$nulls":8},0,0,{"$nulls":7},{"$f":"AE12*12","v":0},{"$f":"AF12*5+AD12","v":0},0,0]
["Yes","Cape","TMNP","Orangekloof Ranger ","Microwave",5000,"L","S","RA",5000,-34.008631,18.391487,"(021) 790-1023","0.5km off Houtbay Main Road, CAPE TOWN",{"$nulls":8},0,0,{"$nulls":7},0,0,0,0]
["Yes","Cape","TMNP","Silvermine","Microwave",10000,"L","S","RA",10000,-34.110061,18.405755,"(021) 789-2457","Silvermine Homestead, Ou Kaapseweg, NOORDHOEK",{"$nulls":8},0,0,{"$nulls":7},0,0,0,0]
["Yes","Cape","TMNP","Smitswinkel ","Microwave",5000,"M","V","C",5000,-34.257713,18.460261,null,"Main Road / Plateau Road (M4 / M65), Cape Point, Smitswinkel bay, SIMONS TOWN","Contact BVC",{"$nulls":7},0,0,{"$nulls":7},0,0,0,0]
["Yes","Cape","TMNP","Tokai Cape Research Centre (CRC) (Bosdorp)","Fibre",40000,"M","M","RAS",40000,-34.060873,18.422619,"(021) 713-7500","Tokai Forest, Tokai Road, TOKAI ","Integrate with Tokai Manor",{"$nulls":7},0,0,{"$nulls":7},0,0,0,0]
["Yes","Cape","TMNP","Tokai Manor","Fibre",15000,"H","C","AOS",15000,-34.059522,18.416503,"(021) 712-0527","Tokai Forest, Tokai Road, TOKAI",{"$nulls":8},0,0,{"$nulls":7},{"$f":"AE17*12","v":0},{"$f":"AF17*5+AD17","v":0},0,0]
["Yes","Cape","TMNP","Tokai New office Server Room (Upgarded Fibre)","Fibre",30000,"H","C","AOS",{"$f":"F18","v":30000},-34.059522,18.416503,"(021) 712-0527","Tokai Forest, Tokai Road, TOKAI",{"$nulls":8},{"$f":"V18*12","v":0},{"$f":"W18*5+U18","v":0},{"$nulls":7},0,0,0,0]
["Yes","Cape","TMNP","Tokai Wild Card Sales","Finbre",10000,"H","S","O",10000,-34.059402,18.418365,"(021) 712-7471","Tokai Forest, Tokai Road, TOKAI","Integrate with Tokai Manor",{"$nulls":7},0,0,{"$nulls":7},0,0,0,0]
["Yes","Cape","TMNP","Wash houses (Platteklip)","Fibre Link",5000,"M","S","CA",5000,-33.946359,18.418128,"(021) 701-8692","Van Riebeeck Park, Entrance at Cnr of Serpentine Rd and Sidmouth Ave,  CAPE TOWN",{"$nulls":8},0,0,{"$nulls":7},0,0,0,0]
["Yes","Cape Town","Cape","Mount Pleasant Regional Offices","Microwave",5000,"H","M","RA",5000,-33.962387,18.453314,"(021) 689-4441","Rhodes Memorial, 2 kms south of UCT, CAPE TOWN",{"$nulls":8},0,0,{"$nulls":7},0,0,0,0]
["Yes","Cape Town","Cape","Travel Trade","Microwave",5000,"H","S","A",5000,-33.921092,18.421685,"(021) 422-2816","15th Floor, Pinnacle Building, 2 Burg Street, CAPE TOWN",{"$nulls":8},0,0,{"$nulls":7},0,0,0,0]
["LAN","Free State","Golden Gate","Glen Reenen Camp","Fibre",10000,"H","S","CO",10000,-28.505697,28.617423,"(058) 255-0000","20.6km East of R712, Golden Gate National Park, CLARENS",{"$nulls":8},0,0,{"$nulls":7},0,0,0,0]
["LAN","Free State","Golden Gate","Wilgenhof Hostel","Microwave",10000,"L","V","O",10000,-28.497811,28.585695,null,null,"Wireless LAN with Gladstone",{"$nulls":7},0,0,{"$nulls":7},{"$f":"AE24*12","v":0},{"$f":"AF24*5+AD24","v":0},0,0]
["No","Free State","Golden Gate","GGNP Gate - East","Microwave",10000,"M","V","G",10000,-28.479526,28.790903,{"$nulls":10},0,0,{"$nulls":7},0,0,0,0]
["No","Free State","Golden Gate","GGNP Gate - West","Microwave",10000,"M","V","G",10000,-28.501268,28.578775,null,null,"Propose link to Gladstone",{"$nulls":7},0,0,{"$nulls":7},0,0,0,0]
["No","Free State","Golden Gate","Golden Gate Staff Shop","N/A","N/A","L","S","O","N/A",-28.507648,28.584105,{"$nulls":22},0]
["No","Free State","Golden Gate","Mountain Retreat Camp","N/A","N/A","L","S","C","N/A",-28.489086,28.642269,{"$nulls":22},0]
["No","Free State","Golden Gate","Noordbraband Camp","N/A","N/A","L","S","C","N/A",-28.516524,28.575865,"(058) 255-0000","19.7km East of R712, Golden Gate National Park, CLARENS",{"$nulls":20},0]
["No","Free State","Golden Gate","Qwa Qwa","VSAT",5000,"M","S","C",5000,-28.488086,28.742245,"(058) 255-0000","40.8km East of R712, Golden Gate National Park, CLARENS",{"$nulls":8},{"$f":"V30*12","v":0},{"$f":"W30*5+U30","v":0},{"$nulls":7},{"$f":"AE30*12","v":0},{"$f":"AF30*5+AD30","v":0},{"$f":"AG30+X30","v":0},0]
["Yes","Free State","Golden Gate","Gladstone Admin Offices","Fibre",10000,"M","C","RASO",10000,-28.503623,28.584002,"(058) 255-0000","17km East of R712, Golden Gate National Park, CLARENS",{"$nulls":8},0,0,{"$nulls":7},{"$f":"AE31*12","v":0},{"$f":"AF31*5+AD31","v":0},0,0]
["Yes","Free State","Golden Gate","Golden Gate Hotel (Brandwag)","Fibre",10000,"H","C","C",10000,-28.505376,28.60948,"(058) 255-0000","19.7km East of R712, Golden Gate National Park, CLARENS",{"$nulls":8},0,0,{"$nulls":7},{"$f":"AE32*12","v":0},{"$f":"AF32*5+AD32","v":0},{"$f":"AG32+X32","v":0},0]
["Internet","Frontier","AENP","Addo Camp","N/A",5000,"N/A","N/A","I",5000,-33.444016,25.745795,"(042) 233-8600","15kms North from Addo Town, on route R335, ADDO",{"$nulls":20},0]
["LAN","Frontier","AENP","Addo Gate - Wireless LAN with Addo Camp","Microwave",5000,"H","V","G",5000,-33.444318,25.738605,"(042) 233-8600","15kms North from Addo Town, on route R335, ADDO",{"$nulls":8},0,0,{"$nulls":7},{"$f":"AE34*12","v":0},{"$f":"AF34*5+AD34","v":0},{"$f":"AG34+X34","v":0},0]
["No","Frontier","AENP","Addo Marine Rangers","Microwave",5000,"M","V","R",5000,-33.574394,25.833509,{"$nulls":10},0,0,{"$nulls":7},{"$f":"AE35*12","v":0},{"$f":"AF35*5+AD35","v":0},0,0]
["No","Frontier","AENP","Colchester Ranger","Microwave",5000,"M","V","R",5000,-33.564509,25.779377,{"$nulls":10},0,0,{"$nulls":7},0,0,0,0]
["No","Frontier","AENP","Darlington Dam Ranger","Microwave",5000,"M","V","R",5000,-33.125373,25.210652,{"$nulls":10},0,0,{"$nulls":7},0,0,0,0]
["No","Frontier","AENP","Kabouga Ranger","Microwave",5000,"L","V","GR",5000,-33.372761,25.467124,"(042) 230-1533","From Uitenhage travel North on R75. Turn North-East on the R336 for 17.1 km. In the town of Kirkwood at the Addo Junction, turn North towards Enon for 4.1km. Site on the left (North) 65 metres. KIRKWOOD",{"$nulls":8},0,0,{"$nulls":7},0,0,0,0]
["No","Frontier","AENP","Nyathi Rest Camp ","Microwave",5000,"M","V","C",5000,-33.383951,25.792768,"(042) 233 8606","6 km East on R342 from Addo Camp entrance, Turn north on district road for 6km, Addo Park, ADDO",{"$nulls":8},0,0,{"$nulls":7},0,0,0,0]
["No","Frontier","AENP","Zuurberg Ranger","Microwave",5000,"M","V","R",5000,-33.347351,25.737842,{"$nulls":10},0,0,{"$nulls":7},0,0,0,0]
["Yes","Frontier","AENP","Addo BSP","Microwave",10000,"L","M","A",10000,-33.454132,25.724031,"(042) 233-0400","15kms North from Addo Town, on route R335, ADDO",{"$nulls":8},0,0,{"$nulls":7},0,0,0,0]
["Yes","Frontier","AENP","Addo Camp","Microwave",10000,"H","C","CGRAOS",10000,-33.444016,25.745795,"(042) 233-8600","15kms North from Addo Town, on route R335, ADDO",{"$nulls":8},0,0,{"$nulls":7},{"$f":"AE42*12","v":0},{"$f":"AF42*5+AD42","v":0},0,0]
["Yes","Frontier","AENP","Matyholweni Camp & Gate ","Microwave",5000,"H","V","CG",5000,-33.680095,25.799734,"(041) 468-0916","Turn right 1.9kms South on N2 from Garage in Colchester - Follow the signboards, COLCHESTER",{"$nulls":8},0,0,{"$nulls":7},{"$f":"AE43*12","v":0},{"$f":"AF43*5+AD43","v":0},0,0]
["Yes","Frontier","AENP","Woody Cape Ranger & BSP","VSAT Shared",5000,"M","M","RAS",5000,-33.70144,26.364923,"(046) 653-1388","8.4km South from Alexandria on unmarked road, just off R72, ALEXANDRIA",{"$nulls":8},0,0,{"$nulls":7},{"$f":"AE44*12","v":0},{"$f":"AF44*5+AD44","v":0},0,0]
["Yes","Frontier","Camdeboo","Camdeboo GVA Gate","Microwave",5000,"L","V","G",5000,-32.198666,24.486954,"(049) 892-3453","7.5km North-West on R63, GRAAFF-REINET",{"$nulls":8},0,0,{"$nulls":7},0,0,0,0]
["Yes","Frontier","Camdeboo","Camdeboo Offices ","Fibre Link",5000,"M","L","CRAS",5000,-32.220074,24.53993,"(049) 892-3453","2.9km North on N9 towards Middelburg, GRAAFF-REINET",{"$nulls":8},0,0,{"$nulls":7},0,0,0,0]
["Yes","Frontier","Camdeboo","Camdeboo Valley Gate","Microwave",5000,"M","V","G",5000,{"$f":"-32.219959","v":-32.219959},24.505623,"(049) 892-3453","4.5km North-West on R63, GRAAFF-REINET",{"$nulls":8},0,0,{"$nulls":7},0,0,0,0]
["3G","Frontier","GRNP","Kransvlei, Wilderness","Microwave",5000,"L","S","A",5000,-33.998709,22.652383,"(044) 882 1043","Turn north on \"Die Vleie\" route, 6.6 km east from Bridge over Touw River in Wilderness, turn right 0.2km, 0.2 km along the road on left, WILDERNESS",{"$nulls":8},0,0,{"$nulls":7},0,0,0,0]
["No","Frontier","GRNP","Goudveld Forest Station","Microwave",5000,"M","V","GR",5000,-33.896521,22.991488,"(044) 389-0126","9.5Km Northeast from Rheenendal, Close to KNYSNA",{"$nulls":8},0,0,{"$nulls":7},0,0,0,0]
["Yes","Frontier","GRNP","Bloukrans Forest Station","Microwave",5000,"L","S","RAS",5000,-33.949376,23.625488,"(044) 531-6792","33.6km East from Plettenberg Bay on N2, Take R102 turn off North, 400m, PLETTENBERG BAY",{"$nulls":8},0,0,{"$nulls":7},0,0,0,0]
["Yes","Frontier","GRNP","Diepwalle Forest Station","Microwave",5000,"M","S","CR",5000,-33.948513,23.157265,"(044) 382-9762","15.6km North on R339, turn Right, continue 1.5km, Diepwalle Forestry Station, KNYSNA",{"$nulls":8},0,0,{"$nulls":7},0,0,0,0]
["Yes","Frontier","GRNP","Farleigh Forest Station","Microwave",5000,"M","S","R",5000,-33.890278,22.875262,"(044) 356-9021","4.4km East on N2 from Sedgefield, Turn North on Ruigtevlei Karatara Road, continue for 22.4km to Farleigh Forestry Station, KARATARA",{"$nulls":8},0,0,{"$nulls":7},0,0,0,0]
["Yes","Frontier","GRNP","George Eco Factory","Microwave",5000,"L","S","A",5000,-33.983244,22.456859,null,"14 Meul Street, George Industria, GEORGE",{"$nulls":8},0,0,{"$nulls":7},0,0,0,0]
["Yes","Frontier","GRNP","Harkerville BSP","Microwave",5000,"L","S","A",5000,-34.04805,23.234715,"(044) 532 7770","12.8km East from Knysna on N2, Take turn off South, 1km, KNYSNA",{"$nulls":8},0,0,{"$nulls":7},0,0,0,0]
["Yes","Frontier","GRNP","Harkerville Forest Station","Microwave",5000,"L","V","GA",5000,-34.04723,23.230698,"(044) 532 7816","12.8km East from Knysna on N2, Take turn off South, 1km, KNYSNA",{"$nulls":8},0,0,{"$nulls":7},0,0,0,0]
["Yes","Frontier","GRNP","Knysna Hotel","Fibre",5000,"M","S","AS",5000,-34.035546,23.051146,"(044) 302-5600","19 Queen Street, cnr of Main Road, KNYSNA",{"$nulls":8},0,0,{"$nulls":7},0,0,0,0]
["Yes","Frontier","GRNP","Natures Valley Camp","LTE",5000,"M","V","C",5000,-33.970914,23.562169,"(044) 531-6700","33.6km East from Plettenberg Bay on N2, Take R102 turn off South, 8.5km, NATURES VALLEY",{"$nulls":8},0,0,{"$nulls":7},0,0,0,0]
["Yes","Frontier","GRNP","Rondevlei Offices ","Microwave",10000,"M","L","RS",10000,-33.989621,22.718579,"(044) 343-1302","6.9km West on N2 from Sedgefield, Turn North on Swartvlei Road, continue for 2.7km, Turn North for 1.1km, SEDGEFIELD",{"$nulls":8},0,0,{"$nulls":7},0,0,0,0]
["Yes","Frontier","GRNP","Stormsriver Admin ","Microwave",5000,"M","S","RA",5000,-34.022955,23.89699,"(042) 281-1607","6.3 km West on N2 from Stormsrivier, Turn Left towards Tsitsikamma National Park, 10km to Park, STORMS RIVER",{"$nulls":8},0,0,{"$nulls":7},0,0,0,0]
["Yes","Frontier","GRNP","Stormsriver Gate ","Microwave",5000,"H","L","GRAS",5000,-34.01095,23.86961,"(042) 281-1607","6.3 km West on N2 from Stormsrivier, Turn Left towards Tsitsikamma National Park, 10km to Park, STORMS RIVER",{"$nulls":8},0,0,{"$nulls":7},{"$f":"AE60*12","v":0},{"$f":"AF60*5+AD60","v":0},0,0]
["Yes","Frontier","GRNP","Thesen Island","Microwave",5000,"H","C","RAS",5000,-34.049377,23.047082,"(044) 302-5600","Thesen Island jetty, Long Street, KNYSNA",{"$nulls":8},0,0,{"$nulls":7},0,0,0,0]
["Yes","Frontier","GRNP","Tsitsikamma Ranger (Stormsriver Village)","Microwave",5000,"M","M","RAS",5000,-33.974395,23.888159,"(042) 281-1557","107 Darnell Street, STORMS RIVER",{"$nulls":8},0,0,{"$nulls":7},0,0,0,0]
["Yes","Frontier","GRNP","Wilderness Camp","Microwave",5000,"H","C","CRA",5000,-33.99088,22.60831,"(044) 877-1197","Head East on N2 from Wilderness for 2.4km, Left on Dumbelton Road, 1.1km into the park. WILDERNESS",{"$nulls":8},0,0,{"$nulls":7},0,0,0,0]
["Internet","Frontier","Mountain Zebra","Mountain Zebra Camp","Microwave",10000,"N/A","N/A","I",10000,-32.223711,25.479569,"(048) 881-2427","4.2km West on N10/R61, 5.5km West on R61, 13.7km Southwest into Park, on left, CRADOCK",{"$nulls":8},{"$f":"V64*12","v":0},{"$f":"W64*5+U64","v":0},{"$nulls":7},0,0,{"$f":"AG64+X64","v":0},{"$f":"AH64*2","v":0}]
["LAN","Frontier","Mountain Zebra","Mountain Zebra Ranger  - Wireless LAN with MZ Camp","Microwave",5000,"M","M","RA",5000,-32.228754,25.468403,"(048) 881-2427","4.2km West on N10/R61, 5.5km West on R61, 13.7km Southwest into Park, on left, CRADOCK",{"$nulls":8},0,0,{"$nulls":7},0,0,0,0]
["Yes","Frontier","Mountain Zebra","Mountain Zebra Camp","VPNS Digi",5000,"H","L","CGRA",5000,-32.223711,25.479569,"(048) 881-2427","4.2km West on N10/R61, 5.5km West on R61, 13.7km Southwest into Park, on left, CRADOCK",{"$nulls":8},0,0,{"$nulls":7},0,0,{"$f":"AG66+X66","v":0},0]
["Yes","Frontier","Port Elizabeth","Frontier Regional Office","Microwave",5000,"M","S","RA",5000,-33.942136,25.560819,"(041) 508-5422","42 6th Avenue, Newton Park, PORT ELIZABETH",{"$nulls":8},0,0,{"$nulls":7},{"$f":"AE67*12","v":0},{"$f":"AF67*5+AD67","v":0},{"$f":"AG67+X67","v":0},0]
["Yes","George","George","Saasveld ","VPNS Digi",5000,"M","M","S",5000,-33.955422,22.529523,"(044) 871-0109","UPE Saasveld Campus, head 5km Northeast on Saasveld Rd from Knysna St junction, Turn North into UPE Saasveld Campus, 1.9km on right, GEORGE",{"$nulls":8},0,0,{"$nulls":7},0,0,0,0]
["Yes","Heidelberg","Gauteng","Heidelberg Factory","Microwave",5000,"L","V","A",5000,-25.76588,28.204662,"(012) 426-5000","643 Leyds Street Muckleneuk, PRETORIA",{"$nulls":8},0,0,{"$nulls":7},0,0,0,{"$f":"AH69*2","v":0}]
["Conc","KNP - North","KNP","Pafuri Private Camp","N/A","N/A","N/A","N/A","O","N/A",{"v":-22.42051,"d":"-22.420510"},31.229496,{"$nulls":22},{"$f":"AH70*2","v":0}]
["Conc","KNP - North","KNP","The Outpost Lodge","N/A","N/A","N/A","N/A","O",{"$f":"F71","v":"N/A"},-22.440151,31.083798,{"$nulls":22},0]
["High","KNP - North","KNP","Dzombo High Site","N/A","N/A","N/A","N/A","H","N/A",-23.309365,31.266082,{"$nulls":22},0]
["High","KNP - North","KNP","Dzundzwini High Site","N/A","N/A","N/A","N/A","H","N/A",-22.769551,31.157601,{"$nulls":22},0]
["High","KNP - North","KNP","Kharige High Site","N/A","N/A","N/A","N/A","H","N/A",-23.577341,31.222797,{"$nulls":22},0]
["High","KNP - North","KNP","Longwe High Site","N/A","N/A","N/A","N/A","H","N/A",-23.826437,{"v":31.68702,"d":"31.687020"},{"$nulls":22},0]
["High","KNP - North","KNP","Mashundutzi High Site","N/A","N/A","N/A","N/A","H","N/A",-22.468412,31.202615,{"$nulls":22},0]
["High","KNP - North","KNP","Punda Maria Sentech High Site","N/A","N/A","N/A","N/A","H","N/A",-22.725129,30.988439,{"$nulls":22},0]
["LAN","KNP - North","KNP","Mooiplaas Ranger - Wireless LAN from Mopani Camp","Microwave",10000,"M","V","R",10000,{"v":-23.51343,"d":"-23.513430"},31.399629,"(013) 735-6550",{"$nulls":9},{"$f":"V78*12","v":0},{"$f":"W78*5+U78","v":0},{"$nulls":7},{"$f":"AE78*12","v":0},{"$f":"AF78*5+AD78","v":0},{"$f":"AG78+X78","v":0},0]
["LAN","KNP - North","KNP","Mopani Conference - Wireless LAN from Mopani Camp","Microwave",10000,"M","V","O",10000,-23.520714,31.395364,"(013) 735-6535",{"$nulls":9},0,0,{"$nulls":7},0,0,0,0]
["LAN","KNP - North","KNP","Mopani Linen Room - Wireless LAN from Mopani Camp","Microwave",10000,"L","V","O",10000,{"v":-23.51933,"d":"-23.519330"},31.398451,"(013) 735-6535",{"$nulls":9},0,0,{"$nulls":7},0,0,0,0]
["LAN","KNP - North","KNP","Pafuri Border Camp - Wireless link to Pafuri Ranger","Microwave",10000,"M","V","C",10000,-22.450362,31.309762,{"$nulls":10},0,0,{"$nulls":7},0,0,0,0]
["No","KNP - North","KNP","Shingwedzi Ranger","Microwave",5000,"M","V","R",5000,-23.117911,31.433341,"(013) 735-6833",{"$nulls":9},0,0,{"$nulls":7},0,0,0,0]
["Picnic","KNP - North","KNP","Babalala Picnic","N/A","N/A","L","V","N/A","N/A",-22.905369,31.251788,{"$nulls":22},0]
["Picnic","KNP - North","KNP","Makhadzi Picnic","N/A","N/A","L","V","N/A","N/A",-23.690752,31.621115,{"$nulls":22},0]
["Picnic","KNP - North","KNP","Mooiplaas Picnic","N/A","N/A","L","V","N/A","N/A",-23.555817,31.440816,{"$nulls":22},0]
["Remote","KNP - North","KNP","Boulders Camp - Managed from Phalaborwa Gate","N/A","N/A","L","V","C","N/A",-23.607917,31.375011,{"$nulls":22},0]
["Remote","KNP - North","KNP","Thulamela Archeological Site","N/A","N/A","L","V","N/A","N/A",-22.432278,31.194791,{"$nulls":22},0]
["Remote","KNP - North","KNP","Tsendze Camp","N/A","N/A","L","V","N/A","N/A",-23.556444,31.442379,{"$nulls":22},0]
["Yes","KNP - North","KNP","Bateleur Camp","Microwave",5000,"M","V","C",5000,-23.233573,31.201531,"(013) 735-6843",{"$nulls":9},{"$f":"V89*12","v":0},{"$f":"W89*5+U89","v":0},{"$nulls":7},{"$f":"AE89*12","v":0},{"$f":"AF89*5+AD89","v":0},{"$f":"AG89+X89","v":0},0]
["Yes","KNP - North","KNP","Giriyondo Gate","Microwave",5000,"M","V","G",5000,-23.584333,31.659524,"(013) 735-8919",{"$nulls":9},0,0,{"$nulls":7},0,0,0,0]
["Yes","KNP - North","KNP","Letaba Camp","Microwave",10000,"H","L","CA",10000,-23.853917,31.574675,"(013) 735-1683",{"$nulls":9},{"$f":"V91*12","v":0},{"$f":"W91*5+U91","v":0},{"$nulls":7},{"$f":"AE91*12","v":0},{"$f":"AF91*5+AD91","v":0},{"$f":"AG91+X91","v":0},0]
["Yes","KNP - North","KNP","Mahlangeni Ranger","Microwave",5000,"M","V","R",5000,-23.648121,{"v":31.14756,"d":"31.147560"},"(013) 735-6693",{"$nulls":9},0,0,{"$nulls":7},{"$f":"AE92*12","v":0},{"$f":"AF92*5+AD92","v":0},0,0]
["Yes","KNP - North","KNP","Mopani Camp Reception","Microwave",10000,"H","L","CA",10000,-23.521813,31.398641,"(013) 735-6535",{"$nulls":9},0,0,{"$nulls":7},{"$f":"AE93*12","v":0},{"$f":"AF93*5+AD93","v":0},0,0]
["Yes","KNP - North","KNP","Pafuri Gate","VSAT",5000,"M","V","G",5000,-22.399875,31.041291,"(013) 735-6888",{"$nulls":9},0,0,{"$nulls":7},{"$f":"AE94*12","v":0},{"$f":"AF94*5+AD94","v":0},0,0]
["Yes","KNP - North","KNP","Pafuri Ranger","Microwave",10000,"M","V","R",10000,-22.450692,31.310721,"(013) 735-5720",{"$nulls":9},0,0,{"$nulls":7},0,0,0,0]
["Yes","KNP - North","KNP","Phalaborwa Gate","Fibre",10000,"H","C","GRASO",10000,-23.945596,{"v":31.16582,"d":"31.165820"},"(013) 735-6509",{"$nulls":9},0,0,{"$nulls":7},0,0,0,0]
["Yes","KNP - North","KNP","Punda Maria Camp","Microwave",10000,"H","S","C",10000,-22.691638,31.016086,"(013) 735-6873",{"$nulls":9},0,0,{"$nulls":7},0,0,0,0]
["Yes","KNP - North","KNP","Punda Maria Gate","Microwave",10000,"H","V","G",10000,{"v":-22.73724,"d":"-22.737240"},31.010789,"(013) 735-6870",{"$nulls":9},0,0,{"$nulls":7},0,0,0,0]
["Yes","KNP - North","KNP","Shangoni Ranger","Microwave",10000,"M","V","R",10000,-23.168533,30.943921,"(013) 735-6857",{"$nulls":9},0,0,{"$nulls":7},0,0,0,0]
["Yes","KNP - North","KNP","Shimuwini Camp","Microwave",10000,"M","V","C",10000,-23.714615,31.266001,"(013) 735-6683",{"$nulls":9},0,0,{"$nulls":7},0,0,0,0]
["Yes","KNP - North","KNP","Shingwedzi Camp","Microwave",10000,"H","L","C",10000,-23.108169,31.435624,"(013) 735-6806",{"$nulls":9},0,0,{"$nulls":7},0,0,0,0]
["Yes","KNP - North","KNP","Shingwedzi Scientists","Microwave",5000,"L","S","S",5000,-23.116863,{"v":31.43119,"d":"31.431190"},"(013) 735-6834",{"$nulls":9},0,0,{"$nulls":7},0,0,0,0]
["Yes","KNP - North","KNP","Sirheni Camp","Microwave",10000,"M","V","C",10000,-22.946153,{"v":31.22124,"d":"31.221240"},"(013) 735-6860",{"$nulls":9},0,0,{"$nulls":7},0,0,0,0]
["Yes","KNP - North","KNP","Vlakteplaas Ranger","Microwave",5000,"M","V","R",5000,-22.871458,{"v":31.23058,"d":"31.230580"},"(013) 735-6855",{"$nulls":9},0,0,{"$nulls":7},0,0,0,0]
["Yes","KNP - North","KNP","Woodlands Ranger","VSAT Shared",5000,"M","V","R",5000,-23.221429,31.212574,"(013) 735-6853",{"$nulls":9},0,0,{"$nulls":7},0,0,0,0]
["Conc","KNP - South","KNP","Afsaal Picnic","N/A","N/A","L","V","P","N/A",-25.286504,31.531752,{"$nulls":22},0]
["Conc","KNP - South","KNP","Camp Shawu","N/A","N/A","N/A","N/A","O","N/A",{"v":-25.30755,"d":"-25.307550"},{"v":31.97201,"d":"31.972010"},{"$nulls":22},0]
["Conc","KNP - South","KNP","Camp Shonga","N/A","N/A","N/A","N/A","O","N/A",{"v":-25.354,"d":"-25.354000"},{"v":31.9902,"d":"31.990200"},{"$nulls":22},0]
["Conc","KNP - South","KNP","Imbali Safari Lodge","N/A","N/A","N/A","N/A","O","N/A",-24.600812,31.629757,{"$nulls":22},0]
["Conc","KNP - South","KNP","Jock Safari Lodge","N/A","N/A","N/A","N/A","O","N/A",{"v":-25.21664,"d":"-25.216640"},31.564177,{"$nulls":22},0]
["Conc","KNP - South","KNP","Lion Sands Narina Lodge","N/A","N/A","N/A","N/A","O","N/A",-24.962031,31.562937,{"$nulls":22},0]
["Conc","KNP - South","KNP","Lukimbi Safari Lodge","N/A","N/A","N/A","N/A","O","N/A",-25.364657,31.683797,{"$nulls":22},0]
["Conc","KNP - South","KNP","Rhino Post Safari Lodge","N/A","N/A","N/A","N/A","O","N/A",-24.923804,31.659679,{"$nulls":22},0]
["Conc","KNP - South","KNP","Shishangeni Private Lodge","N/A","N/A","N/A","N/A","O","N/A",{"v":-25.38912,"d":"-25.389120"},{"v":31.97467,"d":"31.974670"},{"$nulls":22},0]
["Conc","KNP - South","KNP","Singita Lebombo Lodge","N/A","N/A","N/A","N/A","O","N/A",-24.452408,31.977708,{"$nulls":22},0]
["Conc","KNP - South","KNP","Singita Sweni Lodge","N/A","N/A","N/A","N/A","O","N/A",{"v":-24.45402,"d":"-24.454020"},31.980513,{"$nulls":22},0]
["Conc","KNP - South","KNP","Tinga Legends Lodge","N/A","N/A","N/A","N/A","O","N/A",-24.971791,31.583408,{"$nulls":22},0]
["High","KNP - South","KNP","Big Buffalo (Vertel) High Site","N/A","N/A","N/A","N/A","H","N/A",-25.574373,31.535257,{"$nulls":22},0]
["High","KNP - South","KNP","Khandiswe High Site","N/A","N/A","N/A","N/A","H","N/A",-25.470771,31.423573,{"$nulls":22},0]
["High","KNP - South","KNP","Lebombo High Site","N/A","N/A","N/A","N/A","H","N/A",-25.456491,31.979599,{"$nulls":22},0]
["High","KNP - South","KNP","Mariepskop","N/A","N/A","N/A","N/A","H","N/A",-24.542337,30.868687,{"$nulls":22},0]
["High","KNP - South","KNP","Masala High Site","N/A","N/A","N/A","N/A","H","N/A",-24.399119,31.504544,{"$nulls":22},0]
["High","KNP - South","KNP","Munche High Site","N/A","N/A","N/A","N/A","H","N/A",-25.018571,31.924375,{"$nulls":22},0]
["High","KNP - South","KNP","Nwamuriwa High Site","N/A","N/A","N/A","N/A","H","N/A",{"v":-24.76611,"d":"-24.766110"},31.903344,{"$nulls":22},0]
["High","KNP - South","KNP","Pumbe High Site","N/A","N/A","N/A","N/A","H","N/A",-24.182351,31.901521,{"$nulls":22},0]
["High","KNP - South","KNP","Shabeni High Site","N/A","N/A","N/A","N/A","H","N/A",-25.143902,31.242264,{"$nulls":22},0]
["High","KNP - South","KNP","Skukuza","N/A","N/A","N/A","N/A","H","N/A",{"v":-24.99578,"d":"-24.995780"},{"v":31.5915,"d":"31.591500"},{"$nulls":22},0]
["Internet","KNP - South","KNP","Skukuza Camp","Fibre",100000,"N/A","N/A","I",100000,{"v":-24.99597,"d":"-24.995970"},31.596564,"(013) 735-4000",{"$nulls":9},{"$f":"V128*12","v":0},{"$f":"W128*5+U128","v":0},{"$nulls":7},{"$f":"AE128*12","v":0},{"$f":"AF128*5+AD128","v":0},{"$f":"AG128+X128","v":0},0]
["Internet","KNP - South","KNP","Skukuza Conference Centre","LAN",0,"N/A","N/A","I",0,{"v":-24.99329,"d":"-24.993290"},{"v":31.59071,"d":"31.590710"},{"$nulls":22},0]
["Internet","KNP - South","KNP","Skukuza Scientists","LAN",0,"N/A","N/A","I",0,{"v":-24.99447,"d":"-24.994470"},31.590195,{"$nulls":22},0]
["Internet","KNP - South","KNP","Skukuza Special Operations","LAN",0,"N/A","N/A","I",0,-24.968825,31.593826,"(013) 735-5319",{"$nulls":21},0]
["LAN","KNP - South","KNP","Crocodile Bridge Ranger  - Wireless from IP Backbone","Microwave",5000,"M","V","R",5000,-25.355903,31.895145,"(013) 735-6011",{"$nulls":9},{"$f":"V132*12","v":0},{"$f":"W132*5+U132","v":0},{"$nulls":7},{"$f":"AE132*12","v":0},{"$f":"AF132*5+AD132","v":0},{"$f":"AG132+X132","v":0},0]
["LAN","KNP - South","KNP","Game Processing Plant - Wireless LAN from Skukuza","Microwave",5000,"L","V","O",5000,{"v":-24.95724,"d":"-24.957240"},31.602731,"(013) 735-4252",{"$nulls":9},0,0,{"$nulls":7},0,0,0,{"$f":"AH133*2","v":0}]
["LAN","KNP - South","KNP","Malelane Ranger  - Wireless from IP Backbone","Microwave",5000,"M","V","R",5000,-25.471571,31.507888,"(013) 735-6154",{"$nulls":9},0,0,{"$nulls":7},0,0,0,0]
["LAN","KNP - South","KNP","Orpen Gate - Fibre LAN from Orpen Camp","Microwave",10000,"H","V","G",{"$f":"F135","v":10000},-24.481066,31.390123,"(013) 735-0237",{"$nulls":9},{"$f":"V135*12","v":0},{"$f":"W135*5+U135","v":0},{"$nulls":7},{"$f":"AE135*12","v":0},{"$f":"AF135*5+AD135","v":0},{"$f":"AG135+X135","v":0},{"$f":"AH135*2","v":0}]
["LAN","KNP - South","KNP","Skukuza Airport - Wireless LAN with Skukuza","Microwave",5000,"H","V","G",5000,-24.967553,31.593563,{"$nulls":10},0,0,{"$nulls":7},{"$f":"AE136*12","v":0},{"$f":"AF136*5+AD136","v":0},0,0]
["LAN","KNP - South","KNP","Skukuza Flight Services - Wireless LAN with Skukuza","Microwave",5000,"H","S","RA",5000,-24.968943,31.593604,{"$nulls":10},0,0,{"$nulls":7},{"$f":"AE137*12","v":0},{"$f":"AF137*5+AD137","v":0},0,0]
["LAN","KNP - South","KNP","Skukuza Special Operations - Wireless LAN with Skukuza","Microwave",5000,"H","L","RA",5000,-24.968825,31.593826,"(013) 735-5319",{"$nulls":9},0,0,{"$nulls":7},{"$f":"AE138*12","v":0},{"$f":"AF138*5+AD138","v":0},0,0]
["LAN","KNP - South","KNP","Stolsnek Ranger","Microwave",5000,"M","V","R",5000,-25.326719,31.391273,"(013) 735-8904",{"$nulls":9},0,0,{"$nulls":7},{"$f":"AE139*12","v":0},{"$f":"AF139*5+AD139","v":0},0,0]
["LAN\nMast","KNP - South","KNP","Pretoriuskop Ranger and Mast","Microwave",5000,"M","V","MR",5000,-25.168758,31.269906,{"$nulls":10},0,0,{"$nulls":7},0,0,0,0]
["Mast","KNP - South","KNP","Berg-en-Dal Mast","N/A","N/A","N/A","N/A","M","N/A",-25.430806,31.446492,{"$nulls":22},0]
["Camp/Gate","KNP - South","KNP","Crocodile Bridge Camp and Gate","Fibre",50000,"N/A","N/A","M",50000,-25.358794,31.892711,{"$nulls":10},{"$f":"V142*12","v":0},{"$f":"W142*5+U142","v":0},{"$nulls":7},{"$f":"AE142*12","v":0},{"$f":"AF142*5+AD142","v":0},{"$f":"AG142+X142","v":0},{"$f":"AH142*2","v":0}]
["Mast","KNP - South","KNP","Crocodile Bridge Ranger Mast - Wireless from IP Backbone","N/A","N/A","N/A","N/A","M","N/A",-25.356176,31.895462,{"$nulls":22},0]
["Mast","KNP - South","KNP","Kruger Gate","Fibre",50000,"N/A","N/A","M",50000,-24.981766,31.484558,{"$nulls":22},0]
["Mast","KNP - South","KNP","Lower Sabie Ranger (Mast)","Microwave",5000,"M","V","M",5000,-25.122667,31.916649,{"$nulls":22},0]
["Mast","KNP - South","KNP","Malelane Ranger Mast","N/A","N/A","N/A","N/A","M","N/A",-25.470936,31.506976,{"$nulls":22},0]
["Mast","KNP - South","KNP","Mnyeleni Picket Mast","N/A","N/A","N/A","N/A","M","N/A",{"v":-25.38405,"d":"-25.384050"},31.310608,{"$nulls":22},0]
["Mast","KNP - South","KNP","Numbi Gate Mast","N/A","N/A","N/A","N/A","M","N/A",-25.155307,31.198436,{"$nulls":22},0]
["Mast","KNP - South","KNP","Phabeni Gate Mast","N/A","N/A","N/A","N/A","M","N/A",-25.024714,31.241183,{"$nulls":22},0]
["Mast","KNP - South","KNP","Stolsnek Ranger Mast","N/A","N/A","N/A","N/A","M","N/A",-25.326574,31.391013,{"$nulls":22},0]
["Mast","KNP - South","KNP","Wilson Picket Mast","N/A","N/A","N/A","N/A","M","N/A",-25.294566,{"v":31.28332,"d":"31.283320"},{"$nulls":22},0]
["Picnic","KNP - South","KNP","Eileen Orpen Dam Picnic","N/A","N/A","L","V","N/A","N/A",-24.791834,31.897948,{"$nulls":22},0]
["Picnic","KNP - South","KNP","Mlondozi Picnic","N/A","N/A","L","V","N/A","N/A",-25.035583,31.934851,{"$nulls":22},0]
["Picnic","KNP - South","KNP","Muzandzeni Picnic","N/A","N/A","L","V","N/A","N/A",-24.482443,31.636315,{"$nulls":22},0]
["Picnic","KNP - South","KNP","Nhlanguleni Picnic","N/A","N/A","L","V","N/A","N/A",-24.709536,31.655854,{"$nulls":22},0]
["Picnic","KNP - South","KNP","Timbavati Picnic","N/A","N/A","L","V","N/A","N/A",-24.260483,31.645279,{"$nulls":22},0]
["Picnic","KNP - South","KNP","Tshokwane Picnic","N/A","N/A","L","V","P","N/A",-24.786179,31.858919,"(013) 735-5903",{"$nulls":21},0]
["Remote","KNP - South","KNP","Balule Camp - Managed from Olifants Camp","N/A","N/A","L","V","N/A","N/A",-24.053766,{"v":31.73301,"d":"31.733010"},{"$nulls":22},0]
["Remote","KNP - South","KNP","Malelane Camp","N/A","N/A","M","V","C","N/A",-25.462218,31.532303,"(013) 735-6152",{"$nulls":21},0]
["Remote","KNP - South","KNP","Maroela Camping Site - Near Orpen","N/A","N/A","L","V","N/A","N/A",{"v":-24.45606,"d":"-24.456060"},31.399348,{"$nulls":22},0]
["Remote","KNP - South","KNP","Roodewal Private Camp","N/A","N/A","L","V","C","N/A",-24.145957,31.631943,{"$nulls":22},0]
["Remote","KNP - South","KNP","Sandriver Army Base","N/A","N/A","N/A","M","N/A","N/A",-24.958943,{"v":31.67782,"d":"31.677820"},{"$nulls":22},0]
["Remote","KNP - South","KNP","Tamboti Tented Camp - Associated with Orpen Camp","N/A","N/A","L","V","C","N/A",-24.454279,31.405667,{"$nulls":22},0]
["Telkom","KNP - South","KNP","Skukuza IT - WAN entry in Skukuza","N/A","N/A","N/A","N/A","T","N/A",-24.995948,31.596555,{"$nulls":22},0]
["Yes","KNP - South","KNP","Skukuza Telkom (Reception) - Telkom entry in Skukuza","VPNS ME","N/A","N/A","N/A","T","N/A",-24.995777,31.591498,{"$nulls":22},0]
["Yes","KNP - South","KNP","Berg-en-dal Camp","Microwave",5000,"H","L","C",5000,-25.426821,31.450399,"(013) 735-6106",{"$nulls":9},0,0,{"$nulls":7},{"$f":"AE166*12","v":0},{"$f":"AF166*5+AD166","v":0},{"$f":"AG166+X166","v":0},0]
["Yes","KNP - South","KNP","Biyamiti Camp","Microwave",5000,"M","V","C",5000,-25.307859,31.710502,"(013) 735-6171",{"$nulls":9},0,0,{"$nulls":7},{"$f":"AE167*12","v":0},{"$f":"AF167*5+AD167","v":0},0,0]
["Yes","KNP - South","KNP","Crocodile Bridge Camp & Gate","Microwave",5000,"H","M","CG",5000,-25.358727,{"v":31.89268,"d":"31.892680"},"(013) 735-6012",{"$nulls":9},0,0,{"$nulls":7},{"$f":"AE168*12","v":0},{"$f":"AF168*5+AD168","v":0},0,0]
["Yes","KNP - South","KNP","Houtboschrand Ranger","Microwave",5000,"M","V","R",5000,-24.103332,31.669268,"(013) 735-6620",{"$nulls":9},{"$f":"V169*12","v":0},{"$f":"W169*5+U169","v":0},{"$nulls":7},{"$f":"AE169*12","v":0},{"$f":"AF169*5+AD169","v":0},{"$f":"AG169+X169","v":0},{"$f":"AH169*2","v":0}]
["Yes","KNP - South","KNP","Kingfisherspruit Ranger","Microwave",5000,"M","V","R",5000,{"v":-24.46073,"d":"-24.460730"},31.447147,"(013) 735-6357",{"$nulls":9},0,0,{"$nulls":7},0,0,0,0]
["Yes","KNP - South","KNP","Kruger Gate","Microwave",10000,"H","S","G",10000,-24.981091,31.485187,"(013) 735-5107",{"$nulls":9},0,0,{"$nulls":7},{"$f":"AE171*12","v":0},{"$f":"AF171*5+AD171","v":0},0,0]
["Yes","KNP - South","KNP","Lower Sabie Camp","Microwave",5000,"H","L","R",5000,-25.119122,31.916093,"(013) 735-1600",{"$nulls":9},0,0,{"$nulls":7},{"$f":"AE172*12","v":0},{"$f":"AF172*5+AD172","v":0},0,0]
["Yes","KNP - South","KNP","Malelane Gate","Fibre",50000,"H","S","CG",50000,-25.462218,31.532303,"(013) 735-6152",{"$nulls":9},0,0,{"$nulls":7},{"$f":"AE173*12","v":0},{"$f":"AF173*5+AD173","v":0},0,0]
["Yes","KNP - South","KNP","Nkhuhlu Picnic","Microwave",5000,"L","V","P",5000,-24.996901,31.769135,"(013) 735-8900",{"$nulls":9},0,0,{"$nulls":7},{"$f":"AE174*12","v":0},{"$f":"AF174*5+AD174","v":0},0,0]
["Yes","KNP - South","KNP","Numbi Gate","Fibre",50000,"H","V","G",50000,-25.155065,{"v":31.19788,"d":"31.197880"},"(013) 735-5133",{"$nulls":9},0,0,{"$nulls":7},{"$f":"AE175*12","v":0},{"$f":"AF175*5+AD175","v":0},0,0]
["Yes","KNP - South","KNP","Nwanetsi Ranger","Microwave",5000,"M","V","R",5000,-24.457876,31.976121,"(013) 735-6365",{"$nulls":9},0,0,{"$nulls":7},{"$f":"AE176*12","v":0},{"$f":"AF176*5+AD176","v":0},0,0]
["Yes","KNP - South","KNP","Olifants Camp","Microwave",10000,"H","L","CRA",10000,-24.005258,31.740124,"(013) 735-6606",{"$nulls":9},0,0,{"$nulls":7},{"$f":"AE177*12","v":0},{"$f":"AF177*5+AD177","v":0},0,0]
["Yes","KNP - South","KNP","Orpen Camp","Microwave",10000,"H","M","C",10000,-24.475925,31.390885,"(013) 735-6355",{"$nulls":9},0,0,{"$nulls":7},0,0,0,0]
["Yes","KNP - South","KNP","Phabeni Gate","Fibre",50000,"H","S","G",50000,-25.024738,31.241258,"(013) 735-5890",{"$nulls":9},0,0,{"$nulls":7},0,0,0,0]
["Yes","KNP - South","KNP","Pretoriuskop Camp","Microwave",5000,"H","M","C",5000,{"v":-25.16938,"d":"-25.169380"},31.268835,"(013) 735-5128",{"$nulls":9},0,0,{"$nulls":7},0,0,0,0]
["Yes","KNP - South","KNP","Satara Camp","Microwave",10000,"H","L","CRA",10000,-24.393019,31.779848,"(013) 735-6306",{"$nulls":9},0,0,{"$nulls":7},0,0,0,0]
["Yes","KNP - South","KNP","Skukuza Camp","Microwave","20000-50000","H","C","CAOS","20000-50000",{"v":-24.99597,"d":"-24.995970"},31.596564,"(013) 735-4000",{"$nulls":9},0,0,{"$nulls":7},0,0,0,0]
["Yes","KNP - South","KNP","Talamati Camp","Microwave",5000,"M","V","C",5000,-24.556048,31.555438,"(013) 735-6343",{"$nulls":9},0,0,{"$nulls":7},0,0,0,0]
["Yes","KNP - South","KNP","Tshokwane Ranger","Microwave",5000,"M","V","R",5000,-24.783437,{"v":31.85863,"d":"31.858630"},"(013) 735-5902",{"$nulls":9},0,0,{"$nulls":7},0,0,0,0]
["LAN","Limpopo","Mapungubwe","Mapungubwe Visitors Centre  - Fibre LAN to gate","Microwave",10000,"M","L","AO",10000,-22.241642,29.404992,"(015) 533-1414","67km West on R572 from MUSINA",{"$nulls":8},0,0,{"$nulls":7},0,0,0,0]
["Remote","Limpopo","Mapungubwe","Leokwe Camp","VSAT",10000,"M","V","C",10000,-22.21868,29.362166,"(015) 533-1414","67km West on R572 from MUSINA",{"$nulls":20},0]
["Remote","Limpopo","Mapungubwe","Mapungubwe Picnic ","VSAT",10000,"L","V","O",10000,-22.240341,29.407947,"(015) 533-1414","67km West on R572 from MUSINA",{"$nulls":20},0]
["Yes","Limpopo","Mapungubwe","Mapungubwe Gate ","Microwave",10000,"H","L","CGRAS",10000,-22.243332,29.400471,"(015) 533-1414","67km West on R572 from MUSINA",{"$nulls":8},0,0,{"$nulls":7},{"$f":"AE188*12","v":0},{"$f":"AF188*5+AD188","v":0},{"$f":"AG188+X188","v":0},0]
["Internet","North West","Marakele","Marakele Gate","Fibre",30000,"N/A","N/A","I",30000,-24.53091,27.49769,"(014) 777-6929","12,4km Northeast on R510 from Thabazimbi, on left, THABAZIMBI",{"$nulls":8},0,0,{"$nulls":7},{"$f":"AE189*12","v":0},{"$f":"AF189*5+AD189","v":0},{"$f":"AG189+X189","v":0},0]
["No","North West","Marakele","Molapofifi Ranger ","VSAT",2000,"M","V","R",5000,-24.486221,27.728012,"(014) 777-6929","57km Northeast of Thabazimbi on D1485 road which joins Alma road, turn left to North for 32km, On left , THABAZIMBI",{"$nulls":8},{"$f":"V190*12","v":0},{"$f":"W190*5+U190","v":0},{"$nulls":7},{"$f":"AE190*12","v":0},{"$f":"AF190*5+AD190","v":0},{"$f":"AG190+X190","v":0},{"$f":"AH190*2","v":0}]
["No","North West","Marakele","Moralane Ranger","VSAT",2000,"M","V","R",5000,-24.331128,27.694803,"(014) 777-6929","17km Northeast of Thabazimbi on D1485 road, turn left to North for 32km, Turn right on Tweelopfontein which joins Schoonegeluk road for 40km, turn right for 1km, THABAZIMBI",{"$nulls":8},0,0,{"$nulls":7},0,0,0,0]
["Yes","North West","Marakele","Dithabaneng Ranger","VSAT ",2000,"M","M","RA",5000,-24.50061,27.53186,"(014) 777-6929","17.6km Northeast on R510 from Thabazimbi, on left 1.2km, THABAZIMBI",{"$nulls":8},0,0,{"$nulls":7},0,0,0,0]
["Yes","North West","Marakele","Marakele Gate","VSAT",10000,"H","M","CGRAS",10000,-24.53091,27.49769,"(014) 777-6929","12,4km Northeast on R510 from Thabazimbi, on left, THABAZIMBI",{"$nulls":8},0,0,{"$nulls":7},0,0,0,0]
["Yes","North West","Marakele","Thutong Visitors Centre","VSAT",10000,"M","V","A",10000,-24.41537,27.51285,"(014) 772-1632","14.6km Northeast on R510 from Thabazimbi, turn North for 12km, Turn East 2km inside the Park , THABAZIMBI",{"$nulls":8},0,0,{"$nulls":7},0,0,0,0]
["LAN","Northern Cape","Augrabies","Augrabies Gate - Fibre LAN to Augrabies Camp","Fibre Link",20000,"N/A","N/A","G",20000,-28.617341,20.349138,"(054) 452-9200","Route 359, Augrabies, 40km's from KAKAMAS",{"$nulls":20},0]
["Yes","Northern Cape","Augrabies","Augrabies Camp","Microwave",20000,"H","L","CGRAS",20000,-28.593231,20.337785,"(054) 452-9200","Route 359, Augrabies, 40km's from KAKAMAS",{"$nulls":8},0,0,{"$nulls":7},{"$f":"AE196*12","v":0},{"$f":"AF196*5+AD196","v":0},{"$f":"AG196+X196","v":0},0]
["No","Northern Cape","Kgalagadi","Bitterpan Camp ","N/A","N/A","L","S","C","N/A",-25.716435,20.403391,{"$nulls":22},{"$f":"AH197*2","v":0}]
["No","Northern Cape","Kgalagadi","Gharagab Camp ","N/A","N/A","L","S","C",{"$f":"F198","v":"N/A"},-25.042974,20.083904,{"$nulls":22},0]
["No","Northern Cape","Kgalagadi","Grootkolk Camp ","N/A","N/A","L","S","C","N/A",-24.890843,20.145082,{"$nulls":22},0]
["No","Northern Cape","Kgalagadi","Kalahari Tented Camp ","N/A","N/A","M","S","C","N/A",-25.785757,20.01797,{"$nulls":22},0]
["No","Northern Cape","Kgalagadi","Kieliekrankie Camp ","N/A","N/A","L","S","C","N/A",-26.183736,20.592214,{"$nulls":22},0]
["No","Northern Cape","Kgalagadi","Urikaruus Camp ","N/A","N/A","L","S","C","N/A",-26.010757,20.350355,null,"Kgalagadi National Park, 252km's North on R360 from UPINGTON",{"$nulls":20},0]
["Yes","Northern Cape","Kgalagadi","Mata Mata Camp ","VSAT ",2000,"H","S","CS",5000,-25.767194,19.999897,"(054) 561-0907","147km North West of Twee Rivieren on Namibia border, C15 route in Namibia",{"$nulls":8},{"$f":"V203*12","v":0},{"$f":"W203*5+U203","v":0},{"$nulls":7},{"$f":"AE203*12","v":0},{"$f":"AF203*5+AD203","v":0},{"$f":"AG203+X203","v":0},0]
["Yes","Northern Cape","Kgalagadi","Nossob Camp ","VSAT ",2000,"H","S","CS",5000,-25.42128,20.596729,"(054) 561-0903","160km North from Twee Rivieren  along the Nossob river",{"$nulls":8},0,0,{"$nulls":7},{"$f":"AE204*12","v":0},{"$f":"AF204*5+AD204","v":0},{"$f":"AG204+X204","v":0},0]
["Yes","Northern Cape","Kgalagadi","Twee Rivieren Camp","Fibre",10000,"H","L","CGRAS",10000,-26.473884,20.613171,"(054) 561-2000","Kgalagadi National Park, 252km's North on R360 from UPINGTON",{"$nulls":8},{"$f":"V205*12","v":0},{"$f":"W205*5+U205","v":0},{"$nulls":7},{"$f":"AE205*12","v":0},{"$f":"AF205*5+AD205","v":0},{"$f":"AG205+X205","v":0},{"$f":"AH205*2","v":0}]
["Yes","Northern Cape","Kimberley","Kimberley VWS","Microwave",5000,"M","L","AS",5000,-28.772122,24.751071,"(053) 802-1900","21 Wilkins close, off Memorial Road (N12), South en route Cape Town, KIMBERLEY",{"$nulls":8},0,0,{"$nulls":7},{"$f":"AE206*12","v":0},{"$f":"AF206*5+AD206","v":0},{"$f":"AG206+X206","v":0},0]
["Internet","Northern Cape","Mokala","Mosu Lodge ","LTE",100000,"N/A","N/A","I",100000,-29.172543,24.350134,"(053) 204-8000","20km South on N12 from Jacobsdal (R705) turn off, Turn West, 21km on right is Entrance Gate, MODDER RIVIER",{"$nulls":8},0,0,{"$nulls":7},0,0,0,0]
["LAN","Northern Cape","Mokala","Mofele Lodge  - Wireless LAN to Mosu Lodge","Microwave",5000,"L","S","A",5000,-29.166366,24.36838,"(053) 204-0158","20km South on N12 from Jacobsdal (R705) turn off, Turn West, 21km on right is Entrance Gate, MODDER RIVIER",{"$nulls":8},0,0,{"$nulls":7},0,0,0,0]
["Yes","Northern Cape","Mokala","Lilydale Camp ","LTE",10000,"M","S","CA",10000,-29.038565,24.503524,"(053) 581-7128","1 Knoffelfontein Road, Knoffelfontein 104 Farm, Ritchie. Turn West at Jacobsdal (R705) turn off, 16km to Lilydale Entrance Gate, From MODDER RIVIER",{"$nulls":8},0,0,{"$nulls":7},0,0,0,0]
["Yes","Northern Cape","Mokala","Mosu Lodge ","Microwave",5000,"H","L","CRA",5000,-29.172543,24.350134,"(053) 204-8000","20km South on N12 from Jacobsdal (R705) turn off, Turn West, 21km on right is Entrance Gate, MODDER RIVIER",{"$nulls":8},0,0,{"$nulls":7},{"$f":"AE210*12","v":0},{"$f":"AF210*5+AD210","v":0},{"$f":"AG210+X210","v":0},0]
["No","Northern Cape","Namaqua","Kranzevlei Camp ","Microwave",5000,"L","V","C",5000,-30.826855,17.577932,"(027) 581-1052","4.5km South on N7 from Kamieskroon, Turn West for 44.2km,  Turn West for 10.2km,  Turn West for 250m, Turn South at first Road for 9.5km, Turn West for 190m, GARIES",{"$nulls":8},0,0,{"$nulls":7},{"$f":"AE211*12","v":0},{"$f":"AF211*5+AD211","v":0},0,0]
["Yes","Northern Cape","Namaqua","Groenrivier Camp ","VSAT",2000,"L","V","C",5000,-30.826933,17.577894,"(027) 531-1015","24.3 km South on N7 from Garies, Turn west for 62km, GARIES",{"$nulls":8},0,0,{"$nulls":7},0,0,0,0]
["Yes","Northern Cape","Namaqua","Kamieskroon Offices ","LTE",5000,"M","M","A",5000,-30.208451,17.935484,"(027) 672-1159","350m down Charlotta Street, KAMIESKROON",{"$nulls":8},0,0,{"$nulls":7},0,0,0,0]
["Yes","Northern Cape","Namaqua","Skilpad Camp ","VSAT",2000,"L","V","C",5000,-30.143295,17.824486,"(027) 672-1948","From N7 turn East into Kamieskroon, 250m left, 3.2km left, 13.1km left, 350m on right, KAMIESKROON",{"$nulls":8},0,0,{"$nulls":7},0,0,0,0]
["Yes","Northern Cape","Richtersveld","Richtersveld Offices ","VSAT",2000,"H","M","CRA",5000,-28.123736,16.891045,"(027) 831-1506","Sendelingsdrift, border of the Northern Cape and Namibia, at Ferry crossing onto D276 in Namibia, SENDELINGSDRIFT",{"$nulls":8},0,0,{"$nulls":7},0,0,0,0]
["Yes","Northern Cape","Upington","Upington Regional Office","Microwave",5000,"M","V","A",5000,-28.438546,21.280483,"(054) 338 0600","6 Bi-Lo Office, 9 Groenpunt Road, Keidebees, UPINGTON",{"$nulls":8},0,0,{"$nulls":7},0,0,0,0]
["Yes","Port Elizabeth","Port Elizabeth","NMMU","Fibre",5000,"M","S","AS",5000,-34.008058,25.666991,"(041) 508-5411","SANParks Conservation Services, Building 12, University of PE, University Way, PORT ELIZABETH",{"$nulls":8},0,0,{"$nulls":7},{"$f":"AE217*12","v":0},{"$f":"AF217*5+AD217","v":0},0,0]
["Internet","Pretoria","Head Office","Groenkloof - All Sites","ME",300000,"N/A","N/A","I",300000,-25.76588,28.204662,"(012) 426-5000","643 Leyds Street Muckleneuk, PRETORIA",{"$nulls":8},0,0,{"$nulls":7},{"$f":"AE218*12","v":0},{"$f":"AF218*5+AD218","v":0},0,0]
["Yes","Pretoria","Head Office","Brooklyn","Fibre",5000,"H","S","O",5000,-25.772933,28.230382,"(012) 426-5000","232 Bronkhorts Street, Nieu Muckleneuk, PRETORIA",{"$nulls":8},0,0,{"$nulls":7},{"$f":"AE219*12","v":0},{"$f":"AF219*5+AD219","v":0},0,0]
["Yes","Pretoria","Head Office","Groenkloof","Fibre",300000,"H","C","AS",300000,-25.76588,28.204662,"(012) 426-5000","643 Leyds Street Muckleneuk, PRETORIA",{"$nulls":8},0,0,{"$nulls":7},{"$f":"AE220*12","v":0},{"$f":"AF220*5+AD220","v":0},0,0]
["Yes","Samrand","Head Office","Disaster Recovery Site (DCX)","VPNS Digi",30000,"N/A","N/A","N/A",30000,-25.92832,28.141077,"(012) 657-5000","Datacentrix, 101 Landmarks Ave, SAMRAND",{"$nulls":8},0,0,{"$nulls":7},{"$f":"AE221*12","v":0},{"$f":"AF221*5+AD221","v":0},0,0]
["LAN","Western Cape","Agulhas","Agulhas Light House  - Wireless LAN to Offices","Fibre",10000,"M","V","G",10000,-34.829398,20.009015,"(028) 435-6078","158 Lighthouse Road, L'AGULHAS",{"$nulls":8},0,0,{"$nulls":7},{"$f":"AE222*12","v":0},{"$f":"AF222*5+AD222","v":0},0,0]
["Yes","Western Cape","Agulhas","Agulhas Admin Offices","Microwave",10000,"H","M","RAS",10000,-34.828006,20.009593,"(028) 435-6078","158 Lighthouse Road, L'AGULHAS",{"$nulls":8},0,0,{"$nulls":7},{"$f":"AE223*12","v":0},{"$f":"AF223*5+AD223","v":0},{"$f":"AG223+X223","v":0},0]
["Yes","Western Cape","Agulhas","Bosheuwel","Microwave",10000,"L","M","S",10000,-34.714793,19.938298,"(028) 435-6216","5.1km North on R319 from Struisbaai center, Turn Left (West) on the Elim Road for 10.5km, STRUISBAAI",{"$nulls":8},0,0,{"$nulls":7},{"$f":"AE224*12","v":0},{"$f":"AF224*5+AD224","v":0},0,0]
["Yes","Western Cape","Bontebok","Bontebok (Lang Elsieskraal) ","VPNS Digi",5000,"M","L","CGRAS",5000,-34.076114,20.45492,"(028) 514-2735","3.9km East on N2 from R60 Turn off, Swellendam, Turn Right into Park, follow the signs, SWELLENDAM",{"$nulls":8},0,0,{"$nulls":7},0,0,0,0]
["Internet","Western Cape","Karoo","Karoo Camp","LTE",5000,"N/A","N/A","I",5000,-32.330386,22.500021,"(023) 415-2828","4.7km South on N1  from Beaufort West (cnr N1 and Voortrekker), turn west into Park, BEAUFORT WEST",{"$nulls":20},0]
["Yes","Western Cape","Karoo","Karoo Camp","Microwave",10000,"H","L","CRAS",10000,-32.330386,22.500021,"(023) 415-2828","4.7km South on N1  from Beaufort West (cnr N1 and Voortrekker), turn west into Park, BEAUFORT WEST",{"$nulls":8},0,0,{"$nulls":7},{"$f":"AE227*12","v":0},{"$f":"AF227*5+AD227","v":0},{"$f":"AG227+X227","v":0},0]
["Remote","Western Cape","Tankwa Karoo","Elandsberg Camp","N/A","N/A","N/A","N/A","N/A","N/A",-32.175046,19.973737,"(027) 341-1927","From cnr of Vos and Ceres Road, Ceres head North East on Ceres Road (R46), becomes R355 after 40km. After 64km turn North East, continue 65.3km, Turn West and 4.5km at Park",{"$nulls":20},0]
["Remote","Western Cape","Tankwa Karoo","Paulshoek Camp","N/A","N/A","N/A","N/A","N/A","N/A",-32.247114,20.108815,"(027) 341-1927","From cnr of Vos and Ceres Road, Ceres head North East on Ceres Road (R46), becomes R355 after 40km. After 64km turn North East, continue 65.3km, Turn West and 4.5km at Park",{"$nulls":20},0]
["Remote","Western Cape","Tankwa Karoo","Varschfontein Camp","N/A","N/A","N/A","N/A","N/A","N/A",-32.188992,19.794786,"(027) 341-1927","From cnr of Vos and Ceres Road, Ceres head North East on Ceres Road (R46), becomes R355 after 40km. After 64km turn North East, continue 65.3km, Turn West and 4.5km at Park",{"$nulls":20},0]
["Yes","Western Cape","Tankwa Karoo","Tankwa Karoo Reception","Microwave",5000,"H","L","CRAS",5000,-32.241073,20.095679,"(027) 341-1927","From cnr of Vos and Ceres Road, Ceres head North East on Ceres Road (R46), becomes R355 after 40km. After 64km turn North East, continue 65.3km, Turn West and 4.5km at Park",{"$nulls":8},0,0,{"$nulls":7},{"$f":"AE231*12","v":0},{"$f":"AF231*5+AD231","v":0},{"$f":"AG231+X231","v":0},0]
["High","Western Cape","West Coast","WCNP Buffelsfontein Vodacom Mast","N/A","N/A","N/A","N/A","O","N/A",-33.257561,18.24594,"(022) 772-2144",{"$nulls":21},0]
["High","Western Cape","West Coast","WCNP Seaberg Vodacom Mast ","N/A","N/A","N/A","N/A","O","N/A",-33.110466,18.008001,"(022) 772-2144",{"$nulls":21},0]
["High","Western Cape","West Coast","WCNP Swart Vlei Vodacom Mast","N/A","N/A","N/A","N/A","O","N/A",-33.216768,18.221528,"(022) 772-2144",{"$nulls":21},0]
["High","Western Cape","West Coast","WCNP Vodacom Mast","N/A","N/A","N/A","N/A","O","N/A",-33.126945,18.122937,"(022) 772-2144",{"$nulls":21},0]
["Yes","Western Cape","West Coast","Geelbek Visitors Centre","Microwave",5000,"M","V","CA",5000,-33.194509,18.125639,"(022) 772-2798","Head North on West Coast Road (R27) from Cape Town, Turn West at West Coast National Park Gate, continue 10km in Park, LANGEBAAN",{"$nulls":8},{"$f":"V236*12","v":0},{"$f":"W236*5+U236","v":0},{"$nulls":7},{"$f":"AE236*12","v":0},{"$f":"AF236*5+AD236","v":0},{"$f":"AG236+X236","v":0},0]
["Yes","Western Cape","West Coast","WCNP Admin Offices New","Microwave",5000,"H","L","AO",5000,-33.117299,18.055891,"(022) 772-2144",{"$nulls":9},0,0,{"$nulls":7},{"$f":"AE237*12","v":0},{"$f":"AF237*5+AD237","v":0},{"$f":"AG237+X237","v":0},0]
["Yes","Western Cape","West Coast","WCNP Duinepos","N/A","N/A","N/A","N/A","N/A","N/A",-33.194452,18.138114,"(022) 772-2144",{"$nulls":21},0]
["Yes","Western Cape","West Coast","WCNP Gate East ","Microwave",5000,"H","V","G",5000,-33.244158,18.20243,"(022) 772-2144",{"$nulls":9},0,0,{"$nulls":7},{"$f":"AE239*12","v":0},{"$f":"AF239*5+AD239","v":0},{"$f":"AG239+X239","v":0},0]
["Yes","Western Cape","West Coast","WCNP Gate North ","Microwave",5000,"H","V","G",5000,-33.117693,18.055112,"(022) 772-2144",{"$nulls":9},0,0,{"$nulls":7},{"$f":"AE240*12","v":0},{"$f":"AF240*5+AD240","v":0},0,0]
["Yes","Western Cape","West Coast","WCNP Jetty and proposed new Camp","Microwave",5000,"L","V","O",5000,-33.132629,18.07061,"(022) 772-2144",{"$nulls":9},0,0,{"$nulls":7},{"$f":"AE241*12","v":0},{"$f":"AF241*5+AD241","v":0},0,0]
["Yes","Western Cape","West Coast","WCNP Kraalbaai","Microwave",5000,"L","V","C",5000,-33.148113,18.031316,"(022) 772-2144",{"$nulls":9},0,0,{"$nulls":7},0,0,0,0]
["Yes","Western Cape","West Coast","WCNP Offices ","Microwave",5000,"H","L","RAS",5000,-33.097681,18.028463,"(022) 772-2144","Cnr Main and Oostewal Street, LANGEBAAN",{"$nulls":8},0,0,{"$nulls":7},0,0,0,0]
["Yes","Western Cape","West Coast","WCNP Pump Station (Telemetry) ","Microwave",5000,"L","V","O",5000,-33.217515,18.145681,"(022) 772-2144",{"$nulls":9},0,0,{"$nulls":7},0,0,0,0]
["Yes","Western Cape","West Coast","WCNP Technical Offices","Microwave",5000,"L","S","A",5000,-33.119556,18.099149,"(022) 772-2144",{"$nulls":9},0,0,{"$nulls":7},0,0,0,0]
[{"$nulls":20},{"$f":"SUM(U4:U245)","v":0},{"$f":"SUM(V4:V245)","v":0},{"$f":"SUM(W4:W245)","v":0},{"$f":"SUM(X4:X245)","v":0},{"$nulls":5},{"$f":"SUM(AD4:AD245)","v":0},0,0,0,0,0]
[]
[{"$f":"COUNTIF($A$4:$A$245,B248)","v":1},"3G"]
[0,"3rd Party"]
[14,"Conc"]
[20,"High"]
[10,"Internet"]
[20,"LAN"]
[1,"LAN\nMast"]
[10,"Mast"]
[23,"No"]
[9,"Picnic"]
[14,"Remote"]
[1,"Telkom"]
[118,"Yes"]
[{"$f":"COUNTA($A$4:$A$245)","v":242},"TOTAL"]

{"sheet":"VOIP","index":6,"n_rows":22,"n_cols":14,"rows_kept":22}
[]
["VOIP Services"]
["2000 Licenses"]
["Porting of existing Numbers"]
["2000x extensions"]
["2000 user handsets"]
["Call stats and reporting"]
[]
[{"$nulls":3},"SERVICE PROVIDER","Amount Year 1","Amount Year 2","Amount Year 3","Amount Year 4","Amount Year 5","Amount Year 6","Amount Year 7","Amount Year 8","Amount Year 9","Amount Year 10"]
[{"$nulls":3},"Vodacom (rate per minute)"]
[{"$nulls":3},"MTN (rate per minute)"]
[{"$nulls":3},"Cell C (rate per minute)"]
[{"$nulls":3},"Rain (rate per minute)"]
[{"$nulls":3},"Telkom (rate per minute)"]
[{"$nulls":3},"National (rate per minute)"]
[{"$nulls":3},"Local  (rate per minute)"]
[{"$nulls":3},"VOIP Numbers (rate per minute)"]
[{"$nulls":3},"Once of Costs "]
[{"$nulls":3},"Recuring Costs "]
[{"$nulls":3},"SUBTOTAL EXCL VAT"]
[{"$nulls":3},"VAT"]
[{"$nulls":3},"GRAND TOTAL"]

{"sheet":"O Fin Sum","index":7,"n_rows":26,"n_cols":4,"rows_kept":26}
["Financial Summary"]
["Line item","Current Year","Previous Year","Prior Year"]
["Revenue"]
["Net Surplus from Normal Operations"]
["Net Profit before Taxation"]
["Taxation"]
["Net Profit after Taxation"]
["HEPS"]
["Net profit margin (net profit / total revenue)",{"$f":"IF(B$3<>0,B$7/B$3,0)","v":{"v":0,"d":"0.00%"}},{"$f":"IF(C$3<>0,C$7/C$3,0)","v":{"v":0,"d":"0.00%"}},{"$f":"IF(D$3<>0,D$7/D$3,0)","v":{"v":0,"d":"0.00%"}}]
["Return on assets (net profit / total assets) ",{"$f":"IF(B$18<>0,B$7/B$18,0)","v":{"v":0,"d":"0.00%"}},{"$f":"IF(C$18<>0,C$7/C$18,0)","v":{"v":0,"d":"0.00%"}},{"$f":"IF(D$18<>0,D$7/D$18,0)","v":{"v":0,"d":"0.00%"}}]
["Net cashflow for the period"]
["Capital"]
["Number of Shares issued"]
["Non-Current Liabilities"]
["Total Liabilities"]
["Non-Current Assets"]
["Inventory"]
["Total Assets"]
["Liquidity ratio x:1 (current assets / current liabilities)",{"$f":"IF((B$15-B$14)<>0,(B$18-B$16)/(B$15-B$14),0)","v":0},{"$f":"IF((C15-C14)<>0,(C18-C16)/(C15-C14),0)","v":0},{"$f":"IF((D15-D14)<>0,(D18-D16)/(D15-D14),0)","v":0}]
["Acid Test x:1 (current assets less inventory / current liabilities)",{"$f":"IF((B$15-B$14)<>0,(B$18-B$16-B$17)/(B$15-B$14),0)","v":0},{"$f":"IF((C$15-C$14)<>0,(C$18-C$16-C$17)/(C$15-C$14),0)","v":0},{"$f":"IF((D$15-D$14)<>0,(D$18-D$16-D$17)/(D$15-D$14),0)","v":0}]
["Working capital ratio (Current assets – current liabilities)",{"$f":"(B18-B16)-(B15-B14)","v":0},{"$f":"(C18-C16)-(C15-C14)","v":0},{"$f":"(D18-D16)-(D15-D14)","v":0}]
["Stability ratio: Total liabilities / Owners Equity",{"$f":"IF(B24<>0,B15/B24,0)","v":0},{"$f":"IF(C24<>0,C15/C24,0)","v":0},{"$f":"IF(D24<>0,D15/D24,0)","v":0}]
["Interest cover ratio (Net profit before tax plus finance costs/ finance costs)",{"$f":"IF(B26<>0,(B5+B26)/B26,0)","v":0},{"$f":"IF(C26<>0,(C5+C26)/C26,0)","v":0},{"$f":"IF(D26<>0,(D5+D26)/D26,0)","v":0}]
["Equity"]
["Cash on hand / (Overdraft)"]
["Finance Costs"]

{"sheet":"P Qualify","index":8,"n_rows":7,"n_cols":6,"rows_kept":7,"merged":[[0,0,0,3]]}
["Qualification checklist",{"$nulls":4},"Yes"]
["No","Mandatory Requirement","Proof Required","Attached (Yes / No)",null,"No"]
[2,"Be a South African licensed (ECS as well as ECNS) network services provider that includes the build of networks as well as provisioning services on such networks","Certified Copies of both licences"]
[3,"Independantly reviwed Annual Financial Statements / Report not older than three years for each entity that forms a part of the bid response","Annual Financial Statements / Annual Report"]
[4,"Minimum Certifications: ITIL v3/v4 or later Practitioner, CoBIT 5® Implementer, CoBIT 5® Assessor, TOGAF 9 or later certification, CCIE Routing and Switching or Equivalent Certification, CCSP in Network Security or Equivalent Certification, Linux Professional Institute (LPI), MCSE, CISSP, CISM, PRINCE2™ practitioner / PMBOK™ and HP Certified Professional","Certified Copies of certificates"]
[5,"Respond to this Bid in a structured manner following the numbering used in this document","Confirmation that you will adhere to this request"]
[6,"Confirm your ability to provide the full scope of services","Include a sentence of compliance to this requirement"]

{"sheet":"Q References","index":9,"n_rows":13,"n_cols":11,"rows_kept":13,"merged":[[1,0,3,0],[1,1,3,1],[1,3,3,3],[1,5,3,5],[1,6,3,6],[1,8,3,8]]}
["References",{"$nulls":9},"Yes"]
["No","Client","Contact Name,","Commence-ment date","Duration","Contract Value over duration","Summary of services","Contactable","Letter Attached",null,"No"]
[null,null,"Phone number",null,"(Years)",null,null,"(Yes / No)"]
[null,null,"Email address"]
[1]
[2]
[3]
[4]
[5]
[6]
[7]
[8]
[9]

{"sheet":"R Capability","index":10,"n_rows":111,"n_cols":9,"rows_kept":111,"merged":[[2,0,6,0],[2,1,6,1],[2,2,6,2],[2,5,6,5],[2,6,6,6],[7,0,11,0],[7,1,11,1],[7,2,11,2],[7,5,11,5],[7,6,11,6],[12,0,16,0],[12,1,16,1],[12,2,16,2],[12,5,16,5],[12,6,16,6],[17,0,21,0],[17,1,21,1],[17,2,21,2],[17,5,21,5],[17,6,21,6],[22,0,26,0],[22,1,26,1],[22,2,26,2],[22,5,26,5],[22,6,26,6],[27,0,31,0],[27,2,31,2],[27,5,31,5],[27,6,31,6],[32,0,36,0],[32,2,36,2],[32,5,36,5],[32,6,36,6],[37,0,41,0],[37,2,41,2],[37,5,41,5],[37,6,41,6],[42,0,46,0],[42,2,46,2],[42,5,46,5],[42,6,46,6],[47,0,51,0],[47,2,51,2],[47,5,51,5],[47,6,51,6],[52,0,56,0],[52,2,56,2],[52,5,56,5],[52,6,56,6],[57,0,61,0],[57,2,61,2],[57,5,61,5],[57,6,61,6],[62,0,66,0],[62,2,66,2],[62,5,66,5],[62,6,66,6],[67,0,71,0],[67,5,71,5],[67,6,71,6],[72,0,76,0],[72,2,76,2],[72,5,76,5],[72,6,76,6],[77,0,81,0],[77,2,81,2],[77,5,81,5],[77,6,81,6],[82,0,86,0],[82,2,86,2],[82,5,86,5],[82,6,86,6],[87,0,91,0],[87,2,91,2],[87,5,91,5],[87,6,91,6],[92,0,96,0],[92,2,96,2],[92,5,96,5],[92,6,96,6],[97,0,101,0],[97,2,101,2],[97,5,101,5],[97,6,101,6],[102,0,106,0],[102,2,106,2],[102,5,106,5],[102,6,106,6],[107,0,111,0],[107,2,111,2],[107,5,111,5],[107,6,111,6]]}
["Capability",{"$nulls":7},"Yes"]
["Functional Area","Description","Required Certification","Points","Scoring criteria","Names of resources","CV attached",null,"No"]
["Networks","1 x Senior network engineer - \nResponsible for architecture, oversight, Routing and Switching, ","CCIE or Equivalent Certfication",5,"Certified and >5 years' experience"]
[{"$nulls":3},4,"Certified and 4 years' experience"]
[{"$nulls":3},3,"Certified and 3 years' experience"]
[{"$nulls":3},0,"Certified and <3 years' experience"]
[]
[null,"1 x Senior network engineer - \nResponsible for architecture, oversight, Collaboration","CCIE or Equivalent Certfication",5,"Certified and >5 years' experience"]
[{"$nulls":3},4,"Certified and 4 years;  experience"]
[{"$nulls":3},3,"Certified and 3 years' experience"]
[{"$nulls":3},0,"Certified and <3 years' experience"]
[]
[null,"1 x Senior network engineer - \nResponsible for architecture, oversight, Security","CCSP or Equivalent Certfication",5,"Certified and >5 years' experience"]
[{"$nulls":3},4,"Certified and 4 years' experience"]
[{"$nulls":3},3,"Certified and 3 years' experience"]
[{"$nulls":3},0,"Certified and <3 years' experience"]
[]
[null,"2 x Network Engineers","CCNP or Equivalent Certfication x 2",5,"2x Certified and >5 years’ experience each"]
[{"$nulls":3},4,"2x Certified and 4 years’ experience each"]
[{"$nulls":3},3,"2x Certified and 3 years’ experience each"]
[{"$nulls":3},0,"Certified and <3 years' experience"]
[]
[null,"2 x Network Technicians","CCNA or Equivalent Certfication x 2",5,"2x Certified and >5 years’ experience each"]
[{"$nulls":3},4,"2x Certified and 4 years’ experience each"]
[{"$nulls":3},3,"2x Certified and 3 years’ experience each"]
[{"$nulls":3},0,"Certified and <3 years' experience"]
[]
["SharePoint ","2 x Senior Engineers","MSCSE -Productivity or valid certified equivalent",5,"2x Certified and >5 years’ experience each"]
[{"$nulls":3},4,"2x Certified and 4 years’ experience each"]
[{"$nulls":3},3,"2x Certified and 3 years’ experience each"]
[{"$nulls":3},0,"Certified and <3 years' experience"]
[]
["Azure Integration Engineer/Developer","2 x Senior Engineers"," Azure Integration Experience",5," >5 years’ experience each"]
[{"$nulls":3},4,"4 years’ experience each"]
[{"$nulls":3},3,"3 years’ experience each"]
[{"$nulls":3},0,"<3 years' experience"]
[]
["EMS","1 x Senior Engineer","MSCSE - Mobility or valid certified equivalent",5," >5 years’ experience"]
[{"$nulls":3},4,"4 years’ experience"]
[{"$nulls":3},3,"3 years’ experience"]
[{"$nulls":3},0,"<3 years' experience"]
[]
["SCCM","1 x Senior Engineer","SCCM or valid certified equivalent",5,"Certified and >5 years' experience"]
[{"$nulls":3},4,"Certified and 4 years' experience"]
[{"$nulls":3},3,"Certified and 3 years' experience"]
[{"$nulls":3},0,"Certified and <3 years' experience"]
[]
["SOC","1 x Senior Engineer","CISM/CISSP",5,"Certified and >5 years' experience"]
[{"$nulls":3},4,"Certified and 4 years;  experience"]
[{"$nulls":3},3,"Certified and 3 years' experience"]
[{"$nulls":3},0,"Certified and <3 years' experience"]
[]
["Governance","1 x Implementer","CoBIT5® Implementor",5,"Certified and >5 years' experience"]
[{"$nulls":3},4,"Certified and 4 years' experience"]
[{"$nulls":3},3,"Certified and 3 years' experience"]
[{"$nulls":3},0,"Certified and <3 years' experience"]
[]
[null,"1 x Assessor","CoBIT5® Assessor",5,"Certified and >5 years' experience"]
[{"$nulls":3},4,"Certified and 4 years' experience"]
[{"$nulls":3},3,"Certified and 3 years' experience"]
[{"$nulls":3},0,"Certified and <3 years' experience"]
[]
["Governance & Quality Assurance","1 x Senior Consultant","CISA",5,"2x Certified and >5 years’ experience each"]
[null,"1 x Consultant",null,4,"2x Certified and 4 years’ experience each"]
[{"$nulls":3},3,"2x Certified and 3 years’ experience each"]
[{"$nulls":3},0,"Certified and <3 years' experience"]
[]
[null,"1 x Senior Consultant","TOGAF",5,"2x Certified and >5 years’ experience each"]
[null,"1 x Consultant",null,4,"2x Certified and 4 years’ experience each"]
[{"$nulls":3},3,"2x Certified and 3 years’ experience each"]
[{"$nulls":3},0,"Certified and <3 years' experience"]
[]
["Project Management","1 x Senior PM","PMBOK / PRINCE2™",5,"2x Certified and >5 years’ experience each"]
[null,"1 x PM","PRINCE2™",4,"2x Certified and 4 years’ experience each"]
[{"$nulls":3},3,"2x Certified and 3 years’ experience each"]
[{"$nulls":3},0,"Certified and <3 years' experience"]
[]
["Cloud","1 x Senior Engineer","Relevant certification to the environment",5,"2x Certified and >5 years’ experience each"]
[null,"1 x Engineer",null,4,"2x Certified and 4 years’ experience each"]
[{"$nulls":3},3,"2x Certified and 3 years’ experience each"]
[{"$nulls":3},0,"Certified and <3 years' experience"]
[]
["Disaster Recovery","1 x Senior Engineer","Relevant certification to the environment",5,"2x Certified and >5 years’ experience each"]
[null,"1 x Engineer",null,4,"2x Certified and 4 years’ experience each"]
[{"$nulls":3},3,"2x Certified and 3 years’ experience each"]
[{"$nulls":3},0,"Certified and <3 years' experience"]
[]
["Computer Support","3 x Senior Engineer","HP Certified Professional",5,"6x Certified and >5 years’ experience each"]
[null,"3 x Engineer",null,4,"6x Certified and 4 years’ experience each"]
[{"$nulls":3},3,"6x Certified and 3 years’ experience each"]
[{"$nulls":3},0,"6x Certified and <3 years' experience"]
[]
["Servers","1 x Senior Engineer","MCSE - Productivity/Business Applications or valid certified equivalent (MS Server 2012 or higher)",5,"2x Certified and >5 years’ experience each"]
[null,"1 x Engineer",null,4,"2x Certified and 4 years’ experience each"]
[{"$nulls":3},3,"2x Certified and 3 years’ experience each"]
[{"$nulls":3},0,"Certified and <3 years' experience"]
[]
[null,"1 x Senior Engineer","Linux Professional Institute ",5,"2x Certified and >5 years’ experience each"]
[null,"1 x Engineer",null,4,"2x Certified and 4 years’ experience each"]
[{"$nulls":3},3,"2x Certified and 3 years’ experience each"]
[{"$nulls":3},0,"Certified and <3 years' experience"]
[]
["DBA","1 x Senior DBA","MCSE - Data Management and Analytics or valid certified equivalent (MS SQL 2012 or higher)",5,"2x Certified and >5 years’ experience each"]
[null,"1 x DBA",null,4,"2x Certified and 4 years’ experience each"]
[{"$nulls":3},3,"2x Certified and 3 years’ experience each"]
[{"$nulls":3},0,"Certified and <3 years' experience"]
[]
["Contract Governance","Contract Specialist (Legal)","Legal qualification ",5,"Qualified and >5 years’ experience"]
[{"$nulls":3},4,"Qualified and 4 years’ experience"]
[{"$nulls":3},3,"Qualified and 3 years’ experience"]
[{"$nulls":3},0,"Qualified and <3 years’ experience"]

{"sheet":"Price Summary","index":11,"n_rows":90,"n_cols":22,"rows_kept":90,"merged":[[1,0,2,0],[1,4,1,5],[1,22,2,22],[3,0,81,0],[3,22,81,22],[56,2,56,7],[57,2,57,7],[58,2,58,7],[59,2,59,7],[60,2,60,7],[61,2,61,7],[62,2,62,7],[63,2,63,7],[64,2,64,7],[65,2,65,7],[66,2,66,7],[67,2,67,7],[68,2,68,7],[69,2,69,7],[74,2,74,7],[75,2,75,7],[76,2,76,7],[77,2,77,7],[78,2,78,7],[80,4,80,5],[82,1,83,21],[85,22,90,22],[87,2,87,6],[87,8,87,11],[87,13,87,21],[88,2,88,6],[88,8,88,11],[88,13,88,21]]}
[null,"South African National Parks"]
[{"$nulls":4},"Quantity",null,"Hours per","Hours per","Total","Once off","Recurring","Extended"]
[null,"Pricing Schedule Summary",null,"Notes","Minimum","Maximum","Month","Annum","Quantity","Costs","Costs per unit","Recurring","Year 2","Year 3","Year 4","Year 5","Year 6","Year 7","Year 8","Year 9","Year 10","TOTAL"]
[null,2.1,"Core Services",{"$nulls":6},{"$f":"SUM(J5:J22)","v":0},null,{"$f":"SUM(L5:L22)","v":0},0,0,0,0,0,0,0,0,0,{"$f":"SUM(L4:P4)+J4","v":0}]
[null,"2.1.1","Centralised Single Point of Contact (SPoC) Service Desk Aggregator",null,1,1,null,null,{"$f":"F5+H5","v":1},null,null,{"$f":"K5*I5","v":0},{"$f":"L5*(1+M$73)","v":0},0,0,0,0,0,0,0,0,0]
[null,"2.1.2","User Support",null,1,1,null,null,{"$f":"F6+H6","v":1},null,null,{"$f":"K6*I6","v":0},{"$f":"L6*(1+M$73)","v":0},0,0,0,0,0,0,0,0,0]
[null,"2.1.3a","Desktop Configuration - IMACD",null,{"$f":"250*12","v":3000},{"$f":"250*12","v":3000},null,null,{"$f":"F7+H7","v":3000},0,null,{"$f":"K7*I7","v":0},{"$f":"L7*(1+M$73)","v":0},0,0,0,0,0,0,0,0,0]
[null,"2.1.4","Network Management",null,1,1,null,null,1,null,null,0,{"$f":"L8*(1+M$73)","v":0},0,0,0,0,0,0,0,0,0]
[null,"2.1.5","Server Management",null,1,1,null,null,1,null,null,0,{"$f":"L9*(1+M$73)","v":0},0,0,0,0,0,0,0,0,0]
[null,"2.1.6","Database Administration",null,1,1,null,null,1,null,null,0,{"$f":"L10*(1+M$73)","v":0},0,0,0,0,0,0,0,0,0]
[null,"2.1.7","ICT Facility Management",null,1,1,null,null,1,null,null,0,{"$f":"L11*(1+M$73)","v":0},0,0,0,0,0,0,0,0,0]
[null,"2.1.8","Disaster Recovery Management",null,1,1,null,null,1,null,null,0,{"$f":"L12*(1+M$73)","v":0},0,0,0,0,0,0,0,0,0]
[null,"2.1.9a","Email archiving services",null,1610,1800,null,null,1800,null,null,0,{"$f":"L13*(1+M$73)","v":0},0,0,0,0,0,0,0,0,0]
[null,"2.1.9b","Email archiving services - Management",{"$nulls":3},5,{"$f":"G14*12","v":60},{"$f":"F14+H14","v":60},null,null,{"$f":"K14*I14","v":0},{"$f":"L14*(1+M$73)","v":0},0,0,0,0,0,0,0,0,{"$f":"SUM(L14:P14)+J14","v":0}]
[null,"2.1.10","SharePoint Management and Support",{"$nulls":3},50,{"$f":"G15*12","v":600},600,null,null,0,{"$f":"L15*(1+M$73)","v":0},0,0,0,0,0,0,0,0,{"$f":"SUM(L15:P15)+J15","v":0}]
[null,"2.1.11","Azure Intergration Services Management and Support",{"$nulls":3},50,600,600,null,null,0,{"$f":"L16*(1+M$73)","v":0},0,0,0,0,0,0,0,0,{"$f":"SUM(L16:P16)+J16","v":0}]
[null,"2.1.12","EMS Management and Support",{"$nulls":3},20,240,240,null,null,0,{"$f":"L17*(1+M$73)","v":0},0,0,0,0,0,0,0,0,0]
[null,"2.1.13","Password reset Management and Support",{"$nulls":3},16,192,192,null,null,0,{"$f":"L18*(1+M$73)","v":0},0,0,0,0,0,0,0,0,0]
[null,"2.1.14","SCCM Management and Support",{"$nulls":3},40,{"$f":"G19*12","v":480},{"$f":"F19+H19","v":480},null,null,{"$f":"K19*I19","v":0},{"$f":"L19*(1+M$73)","v":0},0,0,0,0,0,0,0,0,0]
[null,"2.1.15a","LAN Supply"]
[null,"2.1.15b","LAN Installation Service",null,500,750,null,{"$f":"G21*12","v":0},{"$f":"F21+H21","v":750},null,null,{"$f":"K21*I21","v":0},{"$f":"L21*(1+M$73)","v":0},0,0,0,0,0,0,0,0,{"$f":"SUM(L21:P21)+J21","v":0}]
[null,"2.1.15c","LAN Maintenance Service",null,300,500,null,0,500,null,null,0,{"$f":"L22*(1+M$73)","v":0},0,0,0,0,0,0,0,0,0]
[null,2.2,"Wide Area Network (Totals from separate pricing schedules where applicable)",{"$nulls":6},{"$f":"SUM(J24:J33)","v":0},0,0,0,0,0,0,0,0,0,0,0,0]
[null,"2.2.1","MPLS / VSAT ",null,1,1,null,null,1,{"$f":"'J Price WAN'!U246+'J Price WAN'!AD246","v":0},{"$f":"'J Price WAN'!W246+'J Price WAN'!AF246","v":0},0,{"$f":"L24*(1+M$73)","v":0},0,0,0,0,0,0,0,0,0]
[null,"2.2.2","Internet access service",null,1,1,null,null,1,{"$f":"'Price Internet'!Z14+'Price Internet'!AJ14","v":0},{"$f":"'Price Internet'!AB14+'Price Internet'!AL14","v":0},0,{"$f":"L25*(1+M$73)","v":0},0,0,0,0,0,0,0,0,0]
[null,"2.2.3","IP telephony services",null,1,1,null,null,1,null,null,0,{"$f":"L26*(1+M$73)","v":0},0,0,0,0,0,0,0,0,0]
[null,"2.2.4a","Remote Access Services - Management",null,1,1,null,null,1,null,null,0,{"$f":"L27*(1+M$73)","v":0},0,0,0,0,0,0,0,0,0]
[null,"2.2.4b","Shared Data - 5 TB",null,1,1,null,null,{"$f":"F28+H28","v":1},null,null,{"$f":"K28*I28","v":0},{"$f":"L28*(1+M$73)","v":0},0,0,0,0,0,0,0,0,0]
[null,"2.2.4c","Backhaul into MPLS - 300 Mbps",null,1,1,null,null,{"$f":"F29+H29","v":1},null,null,{"$f":"K29*I29","v":0},{"$f":"L29*(1+M$73)","v":0},0,0,0,0,0,0,0,0,0]
[null,"2.2.5","Bulk e-mail service",null,1,1,null,null,{"$f":"F30+H30","v":1},null,null,{"$f":"K30*I30","v":0},{"$f":"L30*(1+M$73)","v":0},0,0,0,0,0,0,0,0,0]
[null,"2.2.6a","Bulk SMS service",null,1,1,null,null,{"$f":"F31+H31","v":1},null,null,{"$f":"K31*I31","v":0},{"$f":"L31*(1+M$73)","v":0},0,0,0,0,0,0,0,0,0]
[null,"2.2.6b","CPZ/IPZ Network 500 Mbps",null,1,1,null,null,{"$f":"F32+H32","v":1},null,null,{"$f":"K32*I32","v":0},{"$f":"L32*(1+M$73)","v":0},0,0,0,0,0,0,0,0,0]
[null,"2.2.6c","SMS Bundle - 400 000 pm",null,1,1,null,null,1,null,null,0,{"$f":"L33*(1+M$73)","v":0},0,0,0,0,0,0,0,0,0]
[null,2.3,"Cloud Services ",{"$nulls":6},{"$f":"SUM(J35:J38)","v":0},null,{"$f":"SUM(L35:L38)","v":0},0,0,0,0,0,0,0,0,0,0]
[null,"2.3.1","Disaster Recovery Site",null,1,1,null,null,1,null,null,0,{"$f":"L35*(1+M$73)","v":0},0,0,{"$f":"O35*(1+P$73)","v":0},0,0,0,0,0,0]
[null,"2.3.2a","Website Hosting",null,1,1,null,null,1,null,null,0,0,0,0,0,0,0,0,0,0,0]
[null,"2.3.2b","Development services",{"$nulls":4},3000,{"$f":"F37+H37","v":3000},null,null,{"$f":"K37*I37","v":0},0,0,0,0,0,0,0,0,0,0]
[null,"2.3.3","Implementation and hosting of cloud services",null,1,1,null,null,1,null,null,0,0,0,0,0,0,0,0,0,0,0]
[null,2.4,"Security Services (Totals from separate pricing schedules where applicable)",{"$nulls":6},{"$f":"SUM(J40:J48)","v":0},null,{"$f":"SUM(L40:L48)","v":0},0,0,0,0,0,0,0,0,0,0]
[null,"2.4.1","SOC Services",null,1,1,null,null,1,null,null,0,{"$f":"L40*(1+M$73)","v":0},0,0,{"$f":"O40*(1+P$73)","v":0},0,0,0,0,0,0]
[null,"2.4.2","Vulnerability assessment services",null,1,1,null,null,1,null,null,0,0,0,0,0,0,0,0,0,0,0]
[null,"2.4.3","Multi-factor authentication",null,1,1,null,null,1,null,null,0,0,0,0,0,0,0,0,0,0,0]
[null,"2.4.4a","Perimeter Protection Services",null,1,1,null,null,1,null,null,0,0,0,0,0,0,0,0,0,0,0]
[null,"2.4.4b","Intrusion Prevention",null,1,1,null,null,{"$f":"F44+H44","v":1},null,null,{"$f":"K44*I44","v":0},0,0,0,0,0,0,0,0,0,0]
[null,"2.4.4c","Intrusion Detection",null,1,1,null,null,{"$f":"F45+H45","v":1},null,null,{"$f":"K45*I45","v":0},0,0,0,0,0,0,0,0,0,0]
[null,"2.4.4d","Data loss Prevention",null,1,1,null,null,{"$f":"F46+H46","v":1},null,null,{"$f":"K46*I46","v":0},0,0,0,0,0,0,0,0,0,0]
[null,"2.4.5a","PCI DSS Governance and Monitoring Services - Advisory",{"$nulls":4},200,200,null,null,0,0,0,0,0,0,0,0,0,0,0]
[null,"2.4.5b","Independent QSA",{"$nulls":4},40,40,null,null,0,0,0,0,0,0,0,0,0,0,0]
[null,2.5,"Additional Services (Totals from separate pricing schedules where applicable)",{"$nulls":6},{"$f":"SUM(J50:J55)","v":0},null,{"$f":"SUM(L50:L55)","v":0},0,0,0,0,0,0,0,0,0,0]
[null,"2.5.1a","ICT Governance and Enterprise Architech Services",{"$nulls":4},1500,1500,null,null,0,{"$f":"L50*(1+M$73)","v":0},0,0,{"$f":"O50*(1+P$73)","v":0},0,0,0,0,0,0]
[null,"2.5.1b","Compliance Audits",{"$nulls":4},100,100,null,null,0,0,0,0,0,0,0,0,0,0,0]
[null,"2.5.1c","IT Strategy work",{"$nulls":4},320,{"$f":"F52+H52","v":320},null,null,{"$f":"K52*I52","v":0},0,0,0,0,0,0,0,0,0,0]
[null,"2.5.2a","ICT Maturity and Innovation Services",{"$nulls":4},200,200,null,null,0,0,0,0,0,0,0,0,0,0,0]
[null,"2.5.2b","Ad hoc Projects",{"$nulls":4},1000,1000,null,null,0,0,0,0,0,0,0,0,0,0,0]
[null,"2.5.3","Quality Assurance",{"$nulls":4},80,80,null,null,0,0,0,0,0,0,0,0,0,0,0]
[null,null,"Uncatered for costs (not above) (refer to additional pricing sheets if required)",{"$nulls":6},{"$f":"SUM(J57:J70)","v":0},null,{"$f":"SUM(L57:L70)","v":0},0,0,0,0,{"$f":"SUM(Q57:Q70)","v":0},{"$f":"SUM(R57:R70)","v":0},{"$f":"SUM(S57:S70)","v":0},{"$f":"SUM(T57:T70)","v":0},{"$f":"SUM(U57:U70)","v":0},0]
[{"$nulls":11},0,{"$f":"L57*(1+M$73)","v":0},0,0,{"$f":"O57*(1+P$73)","v":0},0,0,0,0,0,{"$f":"SUM(L57:P57)+J57","v":0}]
[{"$nulls":11},0,0,0,0,0,0,0,0,0,0,0]
[{"$nulls":11},0,0,0,0,0,0,0,0,0,0,0]
[{"$nulls":11},0,0,0,0,0,0,0,0,0,0,0]
[{"$nulls":11},0,0,0,0,0,0,0,0,0,0,0]
[{"$nulls":11},0,0,0,0,0,0,0,0,0,0,0]
[{"$nulls":11},0,0,0,0,0,0,0,0,0,0,0]
[{"$nulls":11},0,0,0,0,0,0,0,0,0,0,0]
[{"$nulls":11},0,{"$f":"L65*(1+M$73)","v":0},0,0,0,0,0,0,0,0,0]
[{"$nulls":11},0,0,0,0,0,0,0,0,0,0,0]
[{"$nulls":11},0,0,0,0,0,0,0,0,0,0,0]
[{"$nulls":11},0,0,0,0,0,0,0,0,0,0,0]
[{"$nulls":11},0,{"$f":"L69*(1+M$73)","v":0},0,0,0,0,0,0,0,0,0]
[{"$nulls":11},{"$f":"K70*I70","v":0},{"$f":"L70*(1+M$73)","v":0},0,0,0,0,0,0,0,0,0]
[]
[null,null,"SUBTOTAL",{"$nulls":6},{"$f":"J4+J23+J34+J39+J49+J56","v":0},null,{"$f":"L4+L23+L34+L39+L49+L56","v":0},0,0,0,0,{"$f":"Q4+Q23+Q34+Q39+Q49+Q56","v":0},{"$f":"R4+R23+R34+R39+R49+R56","v":0},{"$f":"S4+S23+S34+S39+S49+S56","v":0},{"$f":"T4+T23+T34+T39+T49+T56","v":0},{"$f":"U4+U23+U34+U39+U49+U56","v":0},0]
[null,null,"CPI Increase percentages used above",{"$nulls":9},{"v":0.06,"d":"6.00%"},{"v":0.06,"d":"6.00%"},{"v":0.06,"d":"6.00%"},{"v":0.06,"d":"6.00%"},{"v":0.06,"d":"6.00%"},{"v":0.06,"d":"6.00%"},{"v":0.06,"d":"6.00%"},{"v":0.06,"d":"6.00%"},{"v":0.06,"d":"6.00%"}]
[null,null,"Discounts offered",{"$nulls":6},{"$f":"SUM(J75:J79)","v":0},null,{"$f":"SUM(L75:L79)","v":0},0,0,0,0,{"$f":"SUM(Q75:Q79)","v":0},{"$f":"SUM(R75:R79)","v":0},{"$f":"SUM(S75:S79)","v":0},{"$f":"SUM(T75:T79)","v":0},{"$f":"SUM(U75:U79)","v":0},0]
[{"$nulls":11},{"$f":"K75*I75","v":0},{"$nulls":9},{"$f":"SUM(L75:P75)+J75","v":0}]
[{"$nulls":11},{"$f":"K76*I76","v":0},{"$nulls":9},{"$f":"SUM(L76:P76)+J76","v":0}]
[{"$nulls":11},{"$f":"K77*I77","v":0},{"$nulls":9},{"$f":"SUM(L77:P77)+J77","v":0}]
[{"$nulls":11},{"$f":"K78*I78","v":0},{"$nulls":9},{"$f":"SUM(L78:P78)+J78","v":0}]
[{"$nulls":11},{"$f":"K79*I79","v":0},{"$nulls":9},{"$f":"SUM(L79:P79)+J79","v":0}]
[]
[null,null,"TOTAL CONTRACT VALUE",null,{"$f":"V81","v":0},{"$nulls":4},{"$f":"J72-J74","v":0},null,{"$f":"L72-L74","v":0},0,0,0,0,{"$f":"Q72-Q74","v":0},{"$f":"R72-R74","v":0},{"$f":"S72-S74","v":0},{"$f":"T72-T74","v":0},{"$f":"U72-U74","v":0},0]
[]
[null,"Note: If any of the services are included in pricing elsewhere, you are requested to please state the fact in your response by cross-referencing the item to a supporting note. Also, please don't leave the line item blank, but populate the columns available with a zero (0) in the qty, once off and recurring cost fields."]
[]
[]
[null,"Signatures:"]
[]
[null,null,"Name 1",{"$nulls":5},"Name 2",{"$nulls":4},"Name 3"]
[null,null,"Capacity 1",{"$nulls":5},"Capacity 2",{"$nulls":4},"Capacity 3"]
[null,"Date:"]

{"sheet":"Price Internet","index":12,"n_rows":14,"n_cols":40,"rows_kept":14,"merged":[[1,14,1,15],[1,19,1,28],[1,29,1,38],[2,14,2,15]]}
[null,"Internet Pricing"]
["A","B","C","D","E","F","G","H","I","J","K","L","M","N","O",null,"P","Q","R","Primary Connectivity",{"$nulls":9},"Redundant Connectivity",{"$nulls":9},"TOTAL"]
["WAN","Region","Park","Site Name","Curr WAN","Curr BW","RT BW","Curr Teleph","Site Class","Site Size","Site Type","Typical Traffic","Required BW","VAS","GPS Coordinates",null,"Phone","Address","Comment","Type of Connectivity (Diginet, DSL, Fibre, ME, VSAT, Cellular Data, etc.)","Proposed bandwidth \nPrimary (kbps)","RT Class bandwith allocation (kbps)","Closest POP Name","POP GPS Coordinates","Distance from site (kms)","Installation Cost","Monthly recurring cost","Annual recurring cost","Total cost over 5 years","Type of Connectivity (Diginet, DSL, Fibre, ME, VSAT, Cellular Data, etc.)","Proposed bandwidth \nPrimary (kbps)","RT Class bandwith allocation (kbps)","Closest POP Name","POP GPS Coordinates","Distance from site (kms)","\nInstallation Cost","\nMonthly recurring cost","\nAnnual recurring cost","\nTotal cost over 5 years","Total cost over 5 years"]
["Internet","Frontier","AENP","Addo Camp","N/A","N/A","N/A","N/A","N/A","N/A","I","N/A","2000-5000","N/A",-33.444016,25.745795,"(042) 233-8600","15kms North from Addo Town, on route R335, ADDO",{"$nulls":9},{"$f":"AA4*12","v":0},{"$f":"AB4*5+Z4","v":0},{"$nulls":10},{"$f":"AM4+AC4","v":0}]
["Internet","Frontier","Mountain Zebra","Mountain Zebra Camp","N/A","N/A","N/A","N/A","N/A","N/A","I","HMR","2000-5000","N/A",-32.223711,25.479569,"(048) 881-2427","4.2km West on N10/R61, 5.5km West on R61, 13.7km Southwest into Park, on left, CRADOCK",{"$nulls":9},0,0,{"$nulls":10},0]
["Internet","KNP - South","KNP","Skukuza Camp","Digi \nADSL","N/A","N/A","N/A","N/A","N/A","I","N/A","20000-40000","N/A",{"v":-24.99597,"d":"-24.995970"},31.596564,"(013) 735-4000",{"$nulls":10},0,0,{"$nulls":8},{"$f":"AK6*12","v":0},{"$f":"AL6*5+AJ6","v":0},0]
["Internet","KNP - South","KNP","Skukuza Conference Centre","ADSL","N/A","N/A","N/A","N/A","N/A","I","N/A","10000-20000","N/A",{"v":-24.99329,"d":"-24.993290"},{"v":31.59071,"d":"31.590710"},{"$nulls":11},0,0,{"$nulls":8},0,0,0]
["Internet","KNP - South","KNP","Skukuza Scientists","ADSL","N/A","N/A","N/A","N/A","N/A","I","N/A","10000-20000","N/A",{"v":-24.99447,"d":"-24.994470"},31.590195,{"$nulls":11},0,0,{"$nulls":10},0]
["Internet","KNP - South","KNP","Skukuza Special Operations","Digi","N/A","N/A","N/A","N/A","N/A","I","N/A","10000-20000","N/A",-24.968825,31.593826,"(013) 735-5319",{"$nulls":10},0,0,{"$nulls":8},0,0,0]
["Internet","North West","Marakele","Marakele Gate","N/A","N/A","N/A","N/A","N/A","N/A","I","N/A","2000-5000","N/A",-24.53091,27.49769,"(014) 777-6929","12,4km Northeast on R510 from Thabazimbi, on left, THABAZIMBI",{"$nulls":9},0,0,{"$nulls":10},0]
["Internet","Northern Cape","Mokala","Mosu Lodge ","N/A","N/A","N/A","N/A","N/A","N/A","I","N/A","2000-5000","N/A",-29.172543,24.350134,"(053) 204-8000","20km South on N12 from Jacobsdal (R705) turn off, Turn West, 21km on right is Entrance Gate, MODDER RIVIER",{"$nulls":9},0,0,{"$nulls":10},0]
["Internet","Pretoria","Head Office","Groenkloof - All Sites","ME",110000,"N/A","N/A","N/A","N/A","I","O","150000-500000","N/A",-25.76588,28.204662,"(012) 426-5000","643 Leyds Street Muckleneuk, PRETORIA",{"$nulls":9},0,0,{"$nulls":8},0,0,0]
["Internet","Western Cape","Karoo","Karoo Camp","N/A","N/A","N/A","N/A","N/A","N/A","I","N/A","2000-5000","N/A",-32.330386,22.500021,"(023) 415-2828","4.7km South on N1  from Beaufort West (cnr N1 and Voortrekker), turn west into Park, BEAUFORT WEST",{"$nulls":9},0,0,{"$nulls":10},0]
[{"$nulls":25},{"$f":"SUM(Z4:Z13)","v":0},{"$f":"SUM(AA4:AA13)","v":0},{"$f":"SUM(AB4:AB13)","v":0},{"$f":"SUM(AC4:AC13)","v":0},{"$nulls":6},{"$f":"SUM(AJ4:AJ13)","v":0},{"$f":"SUM(AK4:AK13)","v":0},{"$f":"SUM(AL4:AL13)","v":0},{"$f":"SUM(AM4:AM13)","v":0},{"$f":"SUM(AN4:AN13)","v":0}]